Cogmind - Beta 17.1 @@@ ROGUE MODE // 2026.08.18 @ 18:21:15 Player: Cogchaaaan Result: Destroyed by X-87 Electro with Compact HERF Cannon Performance ------------- Evolutions (9) 4500 Regions Visited (29) 5800 Robots Destroyed (534) 2670 Value Destroyed (28657) 28657 Prototype IDs (50) 1000 Alien Tech Used (10) 2000 Bonus (43507) 43507 TOTAL SCORE: 88134 Bonus ------- High Alert Combat Kills 1911 Follower Combat Kills 1655 Prayed to X0-1V1 5000 Major X0-1V1 Interference 17900 Entered Garrisons 1000 Used RIF Installer 2500 Network Hubs Disabled 200 Built Enhanced Grunts 300 A7 Reached Mainframe 300 Met R17 at Cetus 500 Met R17 at Research 2000 Destroyed MAIN.C Guards 500 Met MAIN.C 5000 Destroyed MAIN.C Shell 5000 Friendly Fire -259 Cogmind --------- Core Integrity 0/1650 Matter 762/800 Energy 349/350 System Corruption 0% +Membrane Temperature Cool (0) Movement Core (50) Location -1/Command Parts ------- > --- POWER (3) -------- (None) > --- PROPULSION (7) --- (None) > --- UTILITY (11) ----- (None) > --- WEAPON (4) ------- (None) > --- INVENTORY (5) ---- Armored Heavy Treads Armored Heavy Treads Peak State ------------ > --- POWER ------------ Quantum Reactor Vortex Chain Reactor > --- PROPULSION ------- Medium Treads Experimental Biometal Heavy Treads High-density Centrium Heavy Treads High-density Centrium Heavy Treads > --- UTILITY ---------- Advanced Cooling System Huge Storage Unit Core Analyzer Quantum Capacitor Centrium Medium Armor Plating Advanced Hacking Suite Relay Coupler [NC] X0-1V1's Piety Tracker > --- WEAPON ----------- Enhanced Nova Cannon Enhanced Nova Cannon Core Stripper Sigix Broadsword > --- INVENTORY -------- Quantum Reactor Quantum Reactor Reinforced Quantum Reactor Centrium Heavy Treads Biometal Heavy Treads Structural Scanner Advanced Weapon Cycler Heavy Regenerative Plating AEGIS Remote Shield Advanced Point Defense System Relay Coupler [NC] Navigation Efficiency Matrix Subatomic Replicator Compact HERF Cannon Compact HERF Cannon Enhanced Nova Cannon Enhanced Nova Cannon Enhanced Nova Cannon Heavy Proton Missile Launcher Hellfire Missile Launcher Advanced Remote Datajack [Rating: 241] Favorites ----------- Power Quantum Reactor Engine Improved Deuterium Engine Power Core Cooled Fission Core Reactor Quantum Reactor Propulsion Light Treads Treads Light Treads Wheel Armored Wheel Utility X0-1V1's Piety Tracker Device X0-1V1's Piety Tracker Storage Huge Storage Unit Processor Core Analyzer Hackware Relay Coupler [NC] Protection Centrium Medium Armor Plating Weapon Gatling Laser Energy Gun Gatling Laser Energy Cannon Enhanced Nova Cannon Ballistic Gun Heavy Assault Rifle Ballistic Cannon Linear Accelerator Launcher Advanced EMP Blaster Special Weapon Advanced Remote Datajack Impact Weapon Core Stripper Slashing Weapon Sigix Broadsword Build | -11 -10 -9 -8 -8 -8 -7 -7 -7 -7 -6 -6 -6 -6 -6 -6 -5 -5 -4 -4 -4 -4 -3 -3 -3 -2 -2 -2 -1 -1 ------- Run | Yrd Mat Mat Mat Sto Gar Fac Gar Fac Gar Fac Gar Ext Cet Arc Hub Fac Gar Fac Upp Upp War Pro Res Qua Res Tes Sec Acc Com Slots Evolved 18 | . . 2 2 . . 2 . . . 2 . . . . . 2 . 2 . . . . 2 . 2 . . 2 . Power 2 | . . . . . . . . . . . . . . . . . . . . . . . 1 . 1 . . . . Propulsion 5 | . . 1 1 . . 1 . . . . . . . . . . . 1 . . . . 1 . . . . . . Utility 10 | . . . 1 . . 1 . . . 2 . . . . . 2 . 1 . . . . . . 1 . . 2 . Weapon 1 | . . 1 . . . . . . . . . . . . . . . . . . . . . . . . . . . Parts Attached 230 | 6 3 12 10 14 21 7 11 6 6 1 10 8 11 2 1 3 7 4 . 1 . 1 5 3 13 16 14 4 30 Power 40 | 1 . 2 2 2 5 1 . . 2 . 2 2 2 . . . 1 . . . . . 2 . 2 3 5 1 5 Engine 12 | 1 . 2 1 2 . 1 . . 2 . 1 2 . . . . . . . . . . . . . . . . . Core 7 | . . . 1 . 5 . . . . . . . . . . . 1 . . . . . . . . . . . . Reactor 21 | . . . . . . . . . . . 1 . 2 . . . . . . . . . 2 . 2 3 5 1 5 Propulsion 45 | 2 . 2 4 6 4 1 3 . . . . . 4 . . . . 3 . . . . 1 1 2 6 3 . 3 Treads 43 | 2 . . 4 6 4 1 3 . . . . . 4 . . . . 3 . . . . 1 1 2 6 3 . 3 Leg . | . . . . . . . . . . . . . . . . . . . . . . . . . . . . . . Wheel 2 | . . 2 . . . . . . . . . . . . . . . . . . . . . . . . . . . Hover . | . . . . . . . . . . . . . . . . . . . . . . . . . . . . . . Flight . | . . . . . . . . . . . . . . . . . . . . . . . . . . . . . . Utility 75 | 1 2 . 1 1 4 4 2 4 1 1 6 3 3 1 . 3 4 1 . 1 . . 1 . 6 3 4 3 15 Device 39 | 1 1 . . . 2 3 1 1 1 . 3 2 1 1 . 2 3 . . 1 . . . . 4 1 1 1 9 Storage 6 | . 1 . . . . . . 2 . . . . . . . . . . . . . . . . 1 . . . 2 Processor 8 | . . . . 1 . . . . . . 1 . . . . 1 . . . . . . . . . . 2 1 2 Hackware 5 | . . . . . . . . . . 1 . . . . . . . 1 . . . . 1 . . 1 1 . . Protection 17 | . . . 1 . 2 1 1 1 . . 2 1 2 . . . 1 . . . . . . . 1 1 . 1 2 Artifact . | . . . . . . . . . . . . . . . . . . . . . . . . . . . . . . Weapon 70 | 2 1 8 3 5 8 1 6 2 3 . 2 3 2 1 1 . 2 . . . . 1 1 2 3 4 2 . 7 Energy Gun 10 | . . 1 . 1 . . . . 2 . 2 3 . . . . 1 . . . . . . . . . . . . Energy Cannon 14 | . . . . . . . 1 1 1 . . . . . 1 . . . . . . 1 . 1 2 1 2 . 3 Ballistic Gun 28 | 2 . 7 3 1 7 . 4 1 . . . . 2 1 . . . . . . . . . . . . . . . Ballistic Cannon 4 | . . . . . . . . . . . . . . . . . . . . . . . . . . . . . 4 Launcher 6 | . . . . 1 1 . 1 . . . . . . . . . 1 . . . . . 1 . . 1 . . . Special Weapon 4 | . 1 . . 1 . . . . . . . . . . . . . . . . . . . 1 . 1 . . . Impact Weapon 1 | . . . . . . . . . . . . . . . . . . . . . . . . . . 1 . . . Slashing Weapon 3 | . . . . 1 . 1 . . . . . . . . . . . . . . . . . . 1 . . . . Piercing Weapon . | . . . . . . . . . . . . . . . . . . . . . . . . . . . . . . Special Melee Weapon . | . . . . . . . . . . . . . . . . . . . . . . . . . . . . . . Unidentified Prototypes 31 | . 1 . . 3 . . 1 1 . . . . 3 . . . . . . . . . . 1 2 6 5 1 7 Corrupted Parts 3 | . . . . . . . . . . . 1 . . . . . . . . . . 2 . . . . . . . System Corruption 16 | . . . . . . . . . . . 4 . . . . . . . . . . 12 . . . . . . . Parts Lost 75 | . . . 2 9 15 1 . . 2 . 7 1 . . . . 2 . 1 . . . . . 1 1 3 . 30 Power 14 | . . . . 1 3 . . . 1 . 1 . . . . . . . . . . . . . . . 1 . 7 Propulsion 14 | . . . 1 3 4 . . . . . . . . . . . . . . . . . . . 1 . 1 . 4 Utility 24 | . . . . 2 2 . . . 1 . 3 1 . . . . 1 . 1 . . . . . . 1 1 . 11 Weapon 23 | . . . 1 3 6 1 . . . . 3 . . . . . 1 . . . . . . . . . . . 8 Highest Loss Streak 13 | . . . 1 8 3 1 . . 1 . 2 1 . . . . 1 . 1 . . . . . 1 1 1 . 13 To Critical Strikes 1 | . . . 1 . . . . . . . . . . . . . . . . . . . . . . . . . . Average Backups 19 | 1 4 15 19 18 16 18 18 18 22 21 20 21 22 22 22 21 21 21 21 22 22 22 21 21 22 21 20 21 16 Power 1 | . . . 1 . 1 2 1 1 . 1 . 2 2 2 2 2 2 2 2 2 2 2 1 2 2 3 3 2 1 Propulsion 2 | . 1 4 5 5 5 5 5 2 2 2 2 1 2 2 2 2 2 2 2 2 2 2 1 1 1 1 2 2 1 Utility 7 | . . 4 6 6 4 4 5 7 12 10 8 8 11 11 10 8 9 7 8 9 9 9 9 7 8 7 6 6 5 Weapon 6 | . 2 4 5 4 4 4 5 6 7 7 7 8 6 6 6 7 6 7 7 7 7 7 7 7 5 5 5 7 6 Tool/Special . | . . . . . . . . . . . . . . . . . . . . . . . . . . . . . . Unused Backups 75 | . . 9 2 4 3 2 7 2 1 . 2 5 8 2 1 1 3 3 . . . . 1 4 4 4 3 1 3 Power 12 | . . . . . 2 . 2 . . . 1 1 2 . . . 1 . . . . . . . 1 1 1 . . Propulsion 14 | . . 3 . 3 . . 4 1 . . . . . . . . . 1 . . . . . . . . . . 2 Utility 23 | . . 1 . . 1 . 1 1 1 . . 1 5 1 1 . 2 1 . . . . 1 2 . 3 . . 1 Weapon 22 | . . 5 2 1 . 2 . . . . 1 3 1 . . 1 . 1 . . . . . 1 3 . . 1 . Tool/Special 4 | . . . . . . . . . . . . . . 1 . . . . . . . . . 1 . . 2 . . Average Slot Usage (%) 85 | . 82 87 99 94 98 99 94 84 83 84 81 85 85 86 86 87 87 86 88 89 89 88 87 81 74 77 73 75 67 Engine 2 | . 7 9 5 4 2 6 7 7 7 6 5 8 9 . . . . . . . . . . . . . . . . Core 1 | . . . 3 4 6 . . . . . . . . . . . 4 5 5 5 5 5 4 4 3 . . . . Reactor 5 | . . . . . . . . . . . 2 4 3 13 13 11 5 5 5 5 5 5 9 7 8 12 9 12 11 Treads 17 | . 28 15 17 20 26 30 25 15 15 13 13 13 12 13 13 11 11 12 15 15 15 14 17 19 16 17 16 15 13 Device 13 | . 13 9 8 5 8 14 15 15 14 20 16 12 12 13 13 16 16 15 20 21 21 21 18 13 12 13 12 16 13 Storage 5 | . 4 9 8 9 9 7 7 7 7 6 6 6 6 6 6 5 5 5 5 5 5 5 4 4 3 4 4 4 4 Processor 3 | . . . . 2 . . . . . . 1 6 6 6 6 11 11 10 5 5 5 5 4 4 3 4 4 7 8 Hackware 4 | . . . . . . . . . . 4 6 6 6 6 6 5 5 9 10 10 10 10 9 9 7 8 7 4 1 Protection 5 | . . . 8 6 8 7 6 7 7 6 5 6 6 6 6 5 5 5 4 5 5 5 3 3 3 4 4 4 3 Energy Gun 5 | . . . . . . . . . 3 13 14 19 11 8 11 11 16 11 12 15 15 15 11 4 . . . . . Energy Cannon 3 | . . . . . . . . 3 2 . 3 . . . . 4 . 3 2 . . . 1 6 7 7 7 7 6 Ballistic Gun 10 | . 27 31 35 34 32 25 27 25 23 13 3 . 5 11 7 . . . . . . . . . . . . . . Slashing Weapon 1 | . . . . . 3 4 2 1 . . . . . . . . . . . . . . . . 3 4 3 4 1 Peak Build Rating 241 | 6 19 31 37 37 42 48 76 80 81 81 93 92 112 117 114 124 126 135 140 137 130 134 156 177 201 216 241 241 240 Average Rating 117 | 5 7 27 35 30 37 45 59 75 78 80 79 88 97 113 110 118 121 127 133 130 130 129 147 166 195 200 214 235 196 On Entrance 103 | . 5 19 31 35 23 39 47 75 78 79 81 90 87 107 112 111 120 123 132 130 130 130 130 156 172 191 212 225 233 Avg Prop Armor Cover (%) 15 | 28 28 14 12 12 . . . . . . . . . . . . . . . . . 5 . . . . . . . Naked Turns 7 | . . . . . . . . . . . . . . . . . . . . . . . . . . . . . 7 Heaviest Build 239 | 8 48 62 67 69 65 75 79 121 124 121 130 127 138 143 146 147 148 146 157 149 149 149 177 178 187 201 194 221 239 Greatest Support 310 | 40 40 40 12 63 63 80 150 150 150 150 150 150 155 155 155 155 155 182 177 177 177 177 257 310 310 287 293 288 288 Greatest Overweight (x) 5 | . 1 5 5 5 1 . . . . . . . . . . . . . . . . 1 . 1 . . . . . Average Overweight (x) . | . . 3 5 2 . . . . . . . . . . . . . . . . . . . . . . . . . Largest Inventory Capacity 25 | 5 20 20 20 20 20 20 20 25 25 25 25 25 25 25 25 25 25 25 25 25 25 25 25 25 25 25 25 25 25 Average Capacity 23 | 5 10 20 20 20 20 20 20 21 25 25 25 25 25 25 25 25 25 25 25 25 25 25 25 25 25 25 25 25 24 Most Carried 25 | 4 7 20 20 20 20 20 20 25 25 24 25 25 25 25 25 25 25 25 25 25 25 25 25 25 25 25 25 25 25 Average Carried 21 | 1 4 15 19 18 17 19 19 20 24 23 22 24 24 24 24 24 24 24 24 25 25 24 24 24 24 24 24 23 18 Final Capacity 25 | 5 20 20 20 20 20 20 20 25 25 25 25 25 25 25 25 25 25 25 25 25 25 25 25 25 25 25 25 25 5 Final Carried 25 | 4 7 20 20 18 18 20 20 25 25 24 25 25 25 25 25 25 25 25 25 25 25 25 25 25 25 24 21 25 4 Class Distribution -------------------- 51% | Scavenger-Tank 18% | Scavenger-Mutant 11% | Mutant 6% | Commander-Tank 5% | Tank 4% | Gunner Dominant Class ---------------- Mutant | -10/Materials Gunner | -9/Materials Scavenger-Tank | -8/Materials Scavenger-Tank | -8/Storage Scavenger-Tank | -8/Garrison Scavenger-Tank | -7/Factory Scavenger-Tank | -7/Garrison Scavenger-Tank | -7/Factory Scavenger-Tank | -7/Garrison Scavenger-Tank | -6/Factory Scavenger-Tank | -6/Garrison Scavenger-Tank | -6/Extension Commander-Tank | -6/Cetus Commander-Tank | -6/Archives Commander-Tank | -6/Hub_04(d) Commander-Tank | -5/Factory Scavenger-Tank | -5/Garrison Scavenger-Tank | -4/Factory Scavenger-Tank | -4/Upper Caves Scavenger-Tank | -4/Upper Caves Scavenger-Tank | -4/Warlord Scavenger-Tank | -3/Proximity Caves Scavenger-Tank | -3/Research Scavenger-Tank | -3/Quarantine Scavenger-Mutant | -2/Research Mutant | -2/Testing Mutant | -2/Section 7 Scavenger-Mutant | -1/Access Scavenger-Mutant | -1/Command Resources | -11 -10 -9 -8 -8 -8 -7 -7 -7 -7 -6 -6 -6 -6 -6 -6 -5 -5 -4 -4 -4 -4 -3 -3 -3 -2 -2 -2 -1 -1 ----------- Run | Yrd Mat Mat Mat Sto Gar Fac Gar Fac Gar Fac Gar Ext Cet Arc Hub Fac Gar Fac Upp Upp War Pro Res Qua Res Tes Sec Acc Com Matter Collected 16653 | 308 58 591 929 1152 1682 143 893 496 608 . 224 362 156 456 108 420 435 333 592 108 . 72 381 483 1365 400 1513 440 1945 Remotely 1036 | . . . . . . . . . . . . . . 332 . . . . 479 . . 66 159 . . . . . . Salvage Created 29763 | 206 92 834 1258 1931 1564 143 1337 572 727 . 779 1227 222 189 56 216 927 572 385 228 . 89 768 1253 1970 2141 3824 3644 2609 Parts 1334 | 11 8 50 78 106 75 10 65 23 39 . 30 42 10 15 2 7 42 20 11 11 . 2 17 62 95 99 173 158 73 Haulers Intercepted 14 | . . 4 3 6 . . . . . . . . . . . . . 1 . . . . . . . . . . . Recyclers Shooed 5 | 1 . . . 1 . 1 . 1 . . . . . . . . . . . . . . . . . . 1 . . Parts Field Recycled . | . . . . . . . . . . . . . . . . . . . . . . . . . . . . . . Retrieved Matter . | . . . . . . . . . . . . . . . . . . . . . . . . . . . . . . Parts Self-Destructed 30 | . . . . . . . . . . . . . . . . . . . 13 15 . 2 . . . . . . . Prevented . | . . . . . . . . . . . . . . . . . . . . . . . . . . . . . . Parts Restored . | . . . . . . . . . . . . . . . . . . . . . . . . . . . . . . Kills | -11 -10 -9 -8 -8 -8 -7 -7 -7 -7 -6 -6 -6 -6 -6 -6 -5 -5 -4 -4 -4 -4 -3 -3 -3 -2 -2 -2 -1 -1 ------- Run | Yrd Mat Mat Mat Sto Gar Fac Gar Fac Gar Fac Gar Ext Cet Arc Hub Fac Gar Fac Upp Upp War Pro Res Qua Res Tes Sec Acc Com Combat Hostiles Destroyed 419 | . 2 17 19 27 34 1 20 9 15 . 15 18 3 1 1 4 29 7 10 9 . 2 10 15 23 23 48 36 21 Melee 1 | . . . . . . 1 . . . . . . . . . . . . . . . . . . . . . . . Guns 215 | . 2 16 19 18 29 . 13 9 13 . 14 16 3 1 1 2 23 7 10 9 . 2 8 . . . . . . Cannons 101 | . . . . . . . . . 1 . . . . . . 1 . . . . . . . 13 16 14 26 19 11 AOE 35 | . . . . 8 5 . 7 . 1 . . . . . . . 6 . . . . . . . . 3 4 1 . Classes Destroyed 25 | 2 2 6 2 2 1 . . . . . 2 . . . . . 1 . . . . 1 . 1 1 1 1 . 2 Worker 18 | . . 1 1 6 . 1 . 1 . . . . . . . . . . . . . . 1 . . 3 2 1 1 Builder 11 | . 1 . 4 1 . . . . . . . . . . . . . 2 . . . . . . 1 1 . 1 . Tunneler 9 | 6 . . 1 . . . . 1 . . . . . . . . . . . . . . . . 1 . . . . Hauler 14 | . . 4 3 6 . . . . . . . . . . . . . 1 . . . . . . . . . . . Recycler 16 | 1 . . 1 2 . 1 . 2 . . . 1 . . . . . . . . . . 1 1 . . 1 4 1 Mechanic 1 | . . . . 1 . . . . . . . . . . . . . . . . . . . . . . . . . Operator 23 | . . 4 1 1 . . . . . . . 1 . 4 . . . 1 . . . . . 1 1 2 6 1 . Drone 2 | . . . . . . . . . . . . . . . . . . . . . . 2 . . . . . . . Watcher 18 | . . . . 1 . . 1 1 . . . 3 1 . . . . 1 . . . . . 1 2 2 . 2 3 Swarmer 83 | . . 8 4 3 9 . 14 4 . . . 1 . . . . 12 . 7 8 . . . . . 4 5 4 . Cutter 3 | . . . . . . . . . . . . . . . . . 3 . . . . . . . . . . . . Grunt 122 | . 2 4 8 18 15 . 2 . 7 . 6 7 . . . . 10 . 1 . . . 6 5 5 8 . 15 3 Brawler 10 | . . 1 1 . 3 . . . . . . 1 . . . . . . 2 . . . . . . . . 2 . Duelist 4 | . . . 1 . . . . 1 1 . . . . . . . . . . . . . . . . . . . 1 Researcher 3 | . . . . . . . . . . . . . . . . . . . . . . . . 1 . 1 1 . . Sentry 52 | . . 4 4 5 2 . 4 3 4 . 3 6 . 1 1 1 . 1 . . . . 2 1 2 . 7 1 . Specialist 3 | . . . . . . . . . . . 1 . . . . . . . . . . . . . . . 2 . . Hunter 31 | . . . 1 1 2 . . . 1 . 2 . . . . . 4 2 . . . . 2 . 4 . 6 6 . Programmer 78 | . . . . . 3 1 . 1 2 . 2 1 . . . 3 . 4 . 1 . . . 9 11 10 20 7 3 Heavy 2 | . . . . . . . . . . . . . . . . . . . . . . . . . 1 . 1 . . Behemoth 5 | . . . . . . . . . . . 1 2 . . . . . . . . . . . . . . . 1 1 Cetus Guard 3 | . . . . . . . . . . . . . 3 . . . . . . . . . . . . . . . . S7 Guard 3 | . . . . . . . . . . . . . . . . . . . . . . . . . . . 3 . . M Guard 2 | . . . . . . . . . . . . . . . . . . . . . . . . . . . . . 2 Combat Programmer 2 | . . . . . . . . . . . . . . . . . . . . . . . . . . . . . 2 Striker 2 | . . . . . . . . . . . . . . . . . . . . . . . . . . . . . 2 Executioner 8 | . . . . . . . . . . . . . . . . . . . . . . . . . . . 4 . 4 Alpha 7 2 | . . . . . . . . . . . . . . . . . . . . . . . . . . . . . 2 Fortress 1 | . . . . . . . . . . . . . . . . . . . . . . . . . . 1 . . . Savage 2 | . . . . . . . . . . . . 1 . . . . . . . . . . . . . . 1 . . Best Kill Streak 18 | 1 2 6 6 18 5 1 8 4 6 . 4 3 2 4 1 2 6 3 5 5 . 2 3 3 5 5 6 8 8 Combat Bots Only 13 | . 2 3 4 13 5 1 8 3 6 . 4 3 2 1 1 2 6 2 5 5 . 2 2 3 4 4 6 7 8 Max Kills in Single Turn 4 | 1 1 3 2 4 2 1 3 2 2 . 1 1 2 1 1 1 3 2 3 2 . 2 2 1 1 4 4 2 1 Gunslinging 2 | . . 2 . 1 1 . . 1 1 . . . . . . . 1 . 2 1 . . 1 . . . . . . Exploded 3 | . . . . 2 2 . 3 . 1 . . . . . . . 3 . . . . . . . . 3 3 1 . Melee 1 | . . . . . . 1 . . . . . . . . . . . . . . . . . . . . . . . Uniques/NPCs Destroyed 1 | . . . . . . . . . . . . . . . . . . . . . . . . . . . . . 1 MAIN.C Shell (-1/Command) Combat | -11 -10 -9 -8 -8 -8 -7 -7 -7 -7 -6 -6 -6 -6 -6 -6 -5 -5 -4 -4 -4 -4 -3 -3 -3 -2 -2 -2 -1 -1 -------- Run | Yrd Mat Mat Mat Sto Gar Fac Gar Fac Gar Fac Gar Ext Cet Arc Hub Fac Gar Fac Upp Upp War Pro Res Qua Res Tes Sec Acc Com Hostile Shots Fired 2707 | . 12 56 77 125 177 85 120 81 116 . 203 121 4 . . 9 56 25 24 35 . . 50 139 106 82 173 211 620 Missed 714 | . 1 20 22 35 44 43 39 28 30 . 49 43 . . . 3 13 12 5 6 . . 23 32 18 19 47 55 127 Intercepted 26 | . . . . . . . . . . . . . . . . . . . . . . . . . . . . . 26 Hits 1993 | . 11 36 55 90 133 42 81 53 86 . 154 78 4 . . 6 43 13 19 29 . . 27 107 88 63 126 156 493 Melee 27 | . . 1 1 . 4 . . 1 4 . . . . . . . . . 3 . . . . . . . . . 13 Projectile 1966 | . 11 35 54 90 129 42 81 52 82 . 154 78 4 . . 6 43 13 16 29 . . 27 107 88 63 126 156 480 AOE 8 | . . . . . . . . . . . . . . . . . 1 1 . . . . . . . . . . 6 Critical Strikes 90 | . . 2 3 5 5 . 1 . 3 . 3 3 1 . . . 1 1 . 2 . . 2 15 1 4 9 5 24 Part Disruptions 17 | . . . . 1 . . . 2 . . . . . . . . . . . . . . . 2 . 1 1 1 9 Actively Blocked 9 | . . . . . . . . . . . . . . . . . . . . . . . . . . . . . 9 Damage Taken 32672 | . 146 431 886 1540 1912 192 431 348 742 . 1311 674 67 . 17 173 728 261 254 240 . . 264 1538 2748 1699 3538 1959 10573 Core 2167 | . 13 51 49 61 160 11 56 28 56 . 73 122 . . . . 32 27 7 21 . . 8 25 52 67 91 43 1114 Absorbed by Shields 8418 | . . . . . . 148 292 180 228 . 480 182 41 . . . 27 . 109 219 . . 278 964 . . . 1466 3804 Reduced by Siege Mode 1998 | . . . . . . . . . 45 . 107 7 . . . . 65 . . 3 . . . 165 317 56 75 48 1110 Ignored by Resistances 89 | . . . . . . 7 42 . . . . . . . . . . . . . . . . . . 40 . . . Regen/Repaired (Parts) 9792 | . . 108 . 65 . . . . . . . . . . . . . 49 . . . . 51 . 1390 480 3458 1125 3066 Core Remaining (%) 87 | 100 94 91 . . 72 . . . 97 . . . . . 88 . 96 . . . . 94 . 97 . . 48 . . Volleys Fired 1625 | 24 11 44 57 71 110 5 43 46 36 . 36 37 4 12 3 35 48 34 18 8 . 2 37 74 187 98 243 134 168 Largest 4 | 2 2 4 4 4 4 4 4 4 4 . 4 3 3 3 3 3 3 3 3 3 . 3 3 3 1 1 2 2 4 Hottest 348 | 40 100 92 94 94 101 101 114 153 166 . 268 240 240 240 240 273 240 273 240 240 . 240 240 306 120 120 214 180 348 Shots Fired 3131 | 48 20 153 229 256 384 19 127 100 99 . 119 112 10 36 5 45 107 69 36 23 1 7 67 120 187 98 245 135 274 Gun 1916 | 48 18 153 229 250 378 19 118 71 86 . 115 112 10 36 3 10 92 47 27 23 1 7 45 18 . . . . . Cannon 1141 | . . . . . . . 5 29 11 . 4 . . . 2 35 11 22 9 . . . 16 99 180 93 218 133 274 Launcher 33 | . . . . 6 6 . 4 . 2 . . . . . . . 4 . . . . . 6 . . 1 3 1 . Special 41 | . 2 . . . . . . . . . . . . . . . . . . . . . . 3 7 4 24 1 . Kinetic 1517 | 48 18 149 229 250 378 19 118 71 85 . 39 . 4 33 . . . . . . . . . . . . . . 76 Thermal 1261 | . 2 4 . . . . 5 29 7 . 80 112 6 3 5 45 103 69 36 23 1 7 61 117 131 64 148 54 149 Explosive 11 | . . . . . . . . . . . . . . . . . 4 . . . . . 2 . . 1 3 1 . Electromagnetic 303 | . . . . 6 6 . 4 . 7 . . . . . . . . . . . . . 4 . 49 29 70 79 49 Robot Hit Streak 39 | 5 22 27 14 14 30 7 12 13 24 . 38 27 18 26 14 16 28 24 13 10 . 4 33 24 25 12 15 20 39 Robot Miss Streak 9 | 2 . 5 6 5 9 3 7 4 4 . 7 4 1 1 . 2 2 2 3 2 . 3 2 3 7 2 5 2 4 Penetration Max 1 | . . . . . . . 1 . . . 1 . 1 . . . . . . . . . . . . . . . . Secondary Targets 53 | . . 3 2 7 4 . 2 3 4 . 5 2 2 1 . . 6 . 4 6 . . 2 . . . . . . Max Gunslinging Chain 2 | . . 2 1 1 1 . 1 1 1 . 1 1 1 1 . . 1 . 2 2 . . 1 . . . . . . Capacitor 732 | . . . . . . . . . . . . . . . . . . . . . . . . . 180 93 215 132 112 Shots Hit Robots 2060 | 30 18 97 138 143 220 17 106 52 69 . 85 90 9 32 3 13 66 44 20 20 . 3 45 64 104 64 156 108 244 Core Hits 1211 | 12 8 40 56 81 84 3 73 52 54 . 64 92 12 16 4 6 96 45 25 19 . 4 55 39 35 35 59 56 86 Critical Kills 18 | 2 . . 2 . . . . . 1 . 1 . 1 2 . 1 . . . . . . . 1 1 . 4 1 1 Critical Parts Destroyed 8 | . . . . . 2 1 . 1 . . . . 1 3 . . . . . . . . . . . . . . . Critical Strikes 33 | 2 . . 2 . 2 1 1 2 1 . 3 . 2 5 . 1 . . . . . . . 1 1 . 4 3 2 Meltdown 9 | . . . . . . . . . . . . . . . . 1 . . . . . . . 1 1 . 4 1 1 Destroy 20 | 2 . . 2 . 2 1 . 2 1 . 3 . 2 5 . . . . . . . . . . . . . . . Blast 1 | . . . . . . . . . . . . . . . . . . . . . . . . . . . . . 1 Corrupt 2 | . . . . . . . . . . . . . . . . . . . . . . . . . . . . 2 . Sever 1 | . . . . . . . 1 . . . . . . . . . . . . . . . . . . . . . . Melee Attacks 136 | . . . . 2 29 9 57 3 . . . . . . . . . . . . . . . . . 8 26 1 1 Kinetic 10 | . . . . . . . . . . . . . . . . . . . . . . . . . . 5 5 . . Impact . | . . . . . . . . . . . . . . . . . . . . . . . . . . . . . . Slashing 126 | . . . . 2 29 9 57 3 . . . . . . . . . . . . . . . . . 3 21 1 1 Piercing . | . . . . . . . . . . . . . . . . . . . . . . . . . . . . . . Sneak Attacks 13 | . . . . . . 3 . 1 . . . . . . . . . . . . . . . . . 3 4 1 1 Combat Hostiles . | . . . . . . . . . . . . . . . . . . . . . . . . . . . . . . Follow-up Attacks . | . . . . . . . . . . . . . . . . . . . . . . . . . . . . . . Damage Inflicted 64892 | 260 144 1230 2253 3138 3504 465 3920 1429 1819 . 2297 2478 262 818 109 502 2227 1299 495 462 . 44 1536 2555 4775 3681 7642 5493 10055 Guns 25352 | 260 140 1221 2246 2242 3044 227 1480 1059 1523 . 2297 2478 262 818 99 310 1895 1202 495 462 . 44 1148 400 . . . . . Cannons 30537 | . . . . . . . . 108 146 . . . . . . 192 . 97 . . . . . 2137 4690 2575 5946 4694 9952 Explosions 4928 | . . . . 896 460 . 344 181 150 . . . . . . . 332 . . . . . 388 . 85 367 1112 613 . Melee 4004 | . . . . . . 215 2096 81 . . . . . . . . . . . . . . . . . 739 584 186 103 Ramming 71 | . 4 9 7 . . 23 . . . . . . . . 10 . . . . . . . . 18 . . . . . Kinetic 17996 | 260 140 1200 2246 2242 3044 227 1480 1059 1491 . 565 . 128 741 . . . . . . . . . . . 177 75 . 2921 Thermal 28961 | . . 21 . 142 27 . 134 108 59 . 1732 2478 134 77 99 502 1895 1299 495 462 . 44 1148 2537 3265 1412 3932 1664 5295 Explosive 2685 | . . . . . . . . . . . . . . . . . 332 . . . . . 261 . . 367 1112 613 . Electromagnetic 11339 | . . . . 754 433 . 210 181 269 . . . . . . . . . . . . . 127 . 1510 1163 2014 3030 1648 Impact . | . . . . . . . . . . . . . . . . . . . . . . . . . . . . . . Slashing 3752 | . . . . . . 215 2096 81 . . . . . . . . . . . . . . . . . 562 509 186 103 Piercing . | . . . . . . . . . . . . . . . . . . . . . . . . . . . . . . Entropic 88 | . . . . . . . . . . . . . . . . . . . . . . . . . . . . . 88 Highest Corruption 38 | . . 2 10 12 38 4 4 1 6 . 5 6 . . . 1 1 . 4 5 5 17 . 28 3 4 . . . Average Corruption 11 | . . 2 10 10 35 4 4 1 5 . 4 5 . . . 1 1 . 4 4 5 6 . 24 2 3 . . . Corruption Purged . | . . . . . . . . . . . . . . . . . . . . . . . . . . . . . . Corruption Blocked . | . . . . . . . . . . . . . . . . . . . . . . . . . . . . . . Effects 364 | . . 3 1 40 129 . 21 5 15 . 23 28 . . . . 4 . 13 9 2 12 . 41 10 8 . . . Message Errors 81 | . . 1 . 8 28 . 6 1 4 . 5 7 . . . . 1 . 3 . . 2 . 10 3 2 . . . Matter Fused 80 | . . . 1 7 27 . 4 2 2 . 2 11 . . . . 1 . 5 1 1 3 . 11 1 1 . . . Heat Flow Errors 36 | . . . . 4 14 . 2 . 2 . 4 3 . . . . . . 1 1 . 2 . 2 1 . . . . Energy Discharges 37 | . . 1 . 4 14 . 1 2 2 . 1 3 . . . . . . 1 2 . 1 . 2 2 1 . . . Parts Rejected 1 | . . . . . 1 . . . . . . . . . . . . . . . . . . . . . . . . Parts Fused 2 | . . . . . 1 . . . . . . . . . . . . . . . . . . . . 1 . . . Data Loss (minor) 43 | . . 1 . 2 15 . 5 . 2 . 5 2 . . . . 2 . 1 2 . 1 . 2 2 1 . . . Data Loss (major) 14 | . . . . 1 1 . 2 . . . 1 1 . . . . . . . 1 . 1 . 3 1 2 . . . Misfires 23 | . . . . 3 8 . . . . . 5 1 . . . . . . 1 . 1 1 . 3 . . . . . Alerts 3 | . . . . . . . 1 . . . . . . . . . . . . 1 . 1 . . . . . . . Misdirections 3 | . . . . 2 . . . . . . . . . . . . . . . . . . . 1 . . . . . Weapon Failures 41 | . . . . 9 20 . . . 3 . . . . . . . . . 1 1 . . . 7 . . . . . Overload Shots 1 | . . . . . . . . . 1 . . . . . . . . . . . . . . . . . . . . Overflow Damage 1571 | . . . . 10 . 80 134 . . . . . . . . 17 . . . . . . 31 27 284 263 520 44 161 Projectiles 820 | . . . . . . . . . . . . . . . . 17 . . . . . . . 27 284 94 234 3 161 Explosions 262 | . . . . 10 . . . . . . . . . . . . . . . . . . 31 . . 16 164 41 . Melee 489 | . . . . . . 80 134 . . . . . . . . . . . . . . . . . . 153 122 . . Knockbacks 13 | . . . . . . . . . . . . . . . . . . . . . . . . . . . . . 13 Impact . | . . . . . . . . . . . . . . . . . . . . . . . . . . . . . . Kinetic 13 | . . . . . . . . . . . . . . . . . . . . . . . . . . . . . 13 Secondary . | . . . . . . . . . . . . . . . . . . . . . . . . . . . . . . Self-Inflicted Damage 511 | . . 4 3 186 18 . . 35 . . . . . . . . . . . . . . . 103 . . 77 85 . Shots 15 | . . . . 8 1 . . 3 . . . . . . . . . . . . . . . 1 . . 1 1 . Rammed 10 | . . 2 2 . . 3 . . . . . . . . 1 . . . . . . . . 2 . . . . . Targets Rammed 12 | . 1 2 2 . . 4 . . . . . . . . 1 . . . . . . . . 2 . . . . . Kicked . | . . . . . . . . . . . . . . . . . . . . . . . . . . . . . . Crushed 2 | . 1 . . . . 1 . . . . . . . . . . . . . . . . . . . . . . . Highest Temperature 735 | . 40 204 437 242 247 2 192 18 107 . 264 224 45 51 57 326 295 258 174 237 . 93 216 186 735 419 342 227 286 Average Temperature 85 | . 14 49 130 78 79 1 55 8 36 . 35 53 30 34 40 137 92 76 50 79 . 21 81 42 130 108 83 60 71 Received Heat Transfer 4382 | . 87 129 315 747 549 54 93 17 143 . 355 225 . . 6 9 80 18 . . . . 40 59 652 198 108 59 439 Effects 17 | . . . 1 . . . . . . . . . . . . . 1 . . . . . . . 12 2 . . 1 Shutdowns 4 | . . . 1 . . . . . . . . . . . . . . . . . . . . . 3 . . . . Energy Bleed 5 | . . . . . . . . . . . . . . . . . 1 . . . . . . . 2 2 . . . Interference 3 | . . . . . . . . . . . . . . . . . . . . . . . . . 2 . . . 1 Matter Decay 3 | . . . . . . . . . . . . . . . . . . . . . . . . . 3 . . . . Short Circuit 1 | . . . . . . . . . . . . . . . . . . . . . . . . . 1 . . . . Damage (minor) 1 | . . . . . . . . . . . . . . . . . . . . . . . . . 1 . . . . Siege Activations 68 | . . . . . . . . . 5 . 5 1 . 1 . 1 6 2 2 1 . . 1 4 8 6 12 4 9 Total Turns 1282 | . . . . . . . . . 78 . 129 13 . 57 . 1 129 7 27 8 . . 3 95 145 93 103 31 363 Longest Duration 92 | . . . . . . . . . 39 . 50 13 . 57 . 1 30 4 21 8 . . 3 29 26 48 23 16 92 Martial Activations . | . . . . . . . . . . . . . . . . . . . . . . . . . . . . . . Shielding Activations . | . . . . . . . . . . . . . . . . . . . . . . . . . . . . . . Robots Disrupted 3 | . . . . . . . . . . . . . . . . . . . . . . . . . . 1 1 1 . Combat Hostiles 3 | . . . . . . . . . . . . . . . . . . . . . . . . . . 1 1 1 . Robots Corrupted 50 | . . . . 1 . . . . . . . . . . . . . . . . . . . . 8 5 11 15 10 Combat Hostiles 46 | . . . . 1 . . . . . . . . . . . . . . . . . . . . 6 5 10 15 9 Parts Fried 100 | . . . . 3 2 . . 1 . . . 2 . . . . . . . . . . . . 10 19 15 24 24 Impact Corruptions . | . . . . . . . . . . . . . . . . . . . . . . . . . . . . . . Robots Melted 17 | . . . . . . . . . . . 1 3 . . . 1 . . . . . . 2 2 1 . 4 1 2 Combat Hostiles 16 | . . . . . . . . . . . 1 2 . . . 1 . . . . . . 2 2 1 . 4 1 2 Parts Melted 140 | . . 2 . . 2 . . . . . 12 28 1 . 2 7 15 10 1 2 . . 8 4 11 4 21 4 6 Heat Transferred 36539 | . . 50 . 400 50 . 100 148 112 . 3301 5549 300 175 225 723 4300 2624 1125 975 . 100 2625 2751 2603 999 2923 1180 3201 Parts Sabotaged 1 | . . . . . . . . . . . . . . . . . . . . . . . . . . . . . 1 Parts Stolen . | . . . . . . . . . . . . . . . . . . . . . . . . . . . . . . Parts Stripped 59 | . . . . . . . . . . . . . . . . . . . . . . . . . . 18 41 . . Power Chain Reactions 13 | . . . . 8 3 . 1 . . . . . . . . . . . . . . . . . 1 . . . . Alert | -11 -10 -9 -8 -8 -8 -7 -7 -7 -7 -6 -6 -6 -6 -6 -6 -5 -5 -4 -4 -4 -4 -3 -3 -3 -2 -2 -2 -1 -1 ------- Run | Yrd Mat Mat Mat Sto Gar Fac Gar Fac Gar Fac Gar Ext Cet Arc Hub Fac Gar Fac Upp Upp War Pro Res Qua Res Tes Sec Acc Com Maximum Alert Level 5 | . . 1 2 2 5 3 4 2 2 1 2 1 1 . . . 2 1 . . . . . . 1 . 2 2 2 Low Security (%) 46 | 100 100 56 25 17 . . . . . . 3 83 92 100 100 100 52 91 . . . . 100 100 93 100 18 . . Level 1 25 | . . 43 33 47 5 . . 4 44 100 89 16 7 . . . 37 8 . . . . . . 6 . 73 51 94 Level 2 14 | . . . 41 35 15 8 26 95 55 . 7 . . . . . 9 . . . . . . . . . 7 48 5 Level 3 8 | . . . . . 47 91 41 . . . . . . . . . . . . . . . . . . . . . . Level 4 3 | . . . . . 22 . 32 . . . . . . . . . . . . . . . . . . . . . . Level 5 . | . . . . . 8 . . . . . . . . . . . . . . . . . . . . . . . . High Security . | . . . . . . . . . . . . . . . . . . . . . . . . . . . . . . Max Security . | . . . . . . . . . . . . . . . . . . . . . . . . . . . . . . Sterilizations 1 | . . . . . . . . . . . . . . . 1 . . . . . . . . . . . . . . Peak Influence 1716 | 5 40 321 498 587 1716 900 1285 674 528 277 419 336 212 122 116 134 443 232 . . . . 167 187 233 130 485 672 417 Initial 900 | . . . 125 197 365 900 476 674 212 277 179 219 186 44 9 37 8 232 . . . . . 90 98 21 29 290 391 Average 316 | 1 7 134 353 354 979 782 902 504 414 269 313 108 161 77 37 18 220 114 . . . . 28 63 72 36 289 450 322 Influence Increases 13120 | 35 63 656 774 854 1541 61 809 432 336 . 390 698 207 154 177 397 455 312 155 135 . 9 396 504 681 566 1176 774 373 Destroy 0b10 Robot/C 6750 | . 40 360 380 540 760 20 400 180 245 . 225 336 96 48 60 120 348 144 144 108 . . 120 192 324 288 588 432 252 Destroy 0b10 Robot/NC 496 | 35 5 50 55 90 5 10 35 25 . . . 15 3 12 . 6 . 12 . . . 9 6 9 18 24 27 27 18 Destroy Leader 1062 | . 10 110 106 144 30 10 . 52 28 . 32 36 . . 18 36 24 28 6 18 . . 18 26 82 40 114 76 18 Allied During Kill 705 | . . 4 . . 20 . . . . . 19 249 99 60 78 75 . 45 5 . . . . . 39 . 6 . 6 Successful Hack 292 | . 7 8 17 3 16 . 14 18 . . 11 9 . . 9 . 9 34 . . . . 2 30 14 41 16 34 . Disable Machine 648 | . . . 15 45 . . . 135 27 . 12 45 9 27 . . . 9 . . . . 9 90 27 63 81 27 27 Anti-Garrison Action 1015 | . . . . . 600 . 250 . . . 75 . . . . 90 . . . . . . . . . . . . . Destroy Structure 1140 | . 1 7 5 17 110 6 80 7 9 . 16 8 . 7 12 70 47 40 . . . . 74 130 168 74 130 88 34 Partial Spotted 27 | . . . . . . . . . . . . . . . . . . . . . . . . . . 9 . 18 . Lose Combat Pursuer 414 | . . 15 . 15 . 15 30 15 27 . . . . . . . 27 . . 9 . . . 27 9 27 108 72 18 Miscellaneous 571 | . . 102 196 . . . . . . . . . . . . . . . . . . . 167 . . . 106 . . Influence Decreases 12998 | 35 63 358 603 760 388 1096 205 1413 112 271 228 784 429 237 127 463 24 645 265 135 . 9 235 490 817 553 743 647 863 Entered New Map 4031 | . . . 173 272 198 816 205 611 92 251 78 200 147 67 19 41 4 211 41 . . . . 71 77 18 23 195 221 Time Decay 6979 | 35 63 347 410 398 . 270 . 502 . 20 . 554 222 150 108 214 . 434 154 135 . 9 235 419 455 401 650 452 342 Lost Part 750 | . . . 20 90 150 10 . . 20 . 70 10 . . . . 20 . 10 . . . . . 10 10 30 . 300 Lost Ally 568 | . . . . . 40 . . . . . 80 20 60 20 . 208 . . 60 . . . . . 40 . 40 . . Purge Threat 670 | . . 11 . . . . . 300 . . . . . . . . . . . . . . . . 235 124 . . . Squads Dispatched 82 | . 1 3 2 6 . 3 . 3 . . . . . . . 6 . 5 . . . . 11 5 11 5 9 11 1 Investigation 14 | . . 1 1 . . . . . . . . . . . . 1 . . . . . . 6 . 3 . 1 1 . Extermination 30 | . . . . . . 1 . 2 . . . . . . . 2 . 2 . . . . . 2 5 4 6 5 1 Reinforcement 29 | . 1 2 1 6 . . . 1 . . . . . . . 1 . 3 . . . . 5 3 2 1 2 1 . Assault 8 | . . . . . . 2 . . . . . . . . . 2 . . . . . . . . . . . 4 . Garrison 1 | . . . . . . . . . . . . . . . . . . . . . . . . . 1 . . . . Intercept . | . . . . . . . . . . . . . . . . . . . . . . . . . . . . . . Searches Triggered . | . . . . . . . . . . . . . . . . . . . . . . . . . . . . . . Construction Impeded 2 | . . . . . . . . . . . . . . . . . . 1 . . . . 1 . . . . . . Haulers Reinforced 2 | . . . . . . . . . . . . . . . . . . 1 . . . . . . . . . 1 . Active Scanning Responses . | . . . . . . . . . . . . . . . . . . . . . . . . . . . . . . Cargo Convoy Interrupts . | . . . . . . . . . . . . . . . . . . . . . . . . . . . . . . Stealth | -11 -10 -9 -8 -8 -8 -7 -7 -7 -7 -6 -6 -6 -6 -6 -6 -5 -5 -4 -4 -4 -4 -3 -3 -3 -2 -2 -2 -1 -1 --------- Run | Yrd Mat Mat Mat Sto Gar Fac Gar Fac Gar Fac Gar Ext Cet Arc Hub Fac Gar Fac Upp Upp War Pro Res Qua Res Tes Sec Acc Com Distress Signals 20 | . . 1 1 . . . . . . . . 1 . 1 . . . 1 . . . . 6 . . . 1 6 2 Communications Jammed . | . . . . . . . . . . . . . . . . . . . . . . . . . . . . . . Distress Signals . | . . . . . . . . . . . . . . . . . . . . . . . . . . . . . . Times Spotted 623 | . 5 25 32 42 38 4 21 14 15 . 17 29 10 10 10 6 32 12 12 10 . . 18 29 39 31 62 54 46 Peak Tracking Total 12 | . 2 3 5 10 4 3 4 3 3 . 3 3 5 2 4 2 4 5 7 5 . . 3 4 3 5 5 11 12 Tactical Retreats 33 | . . 1 . 1 . 1 1 1 2 . . . . . . . 2 . . 1 . . . 2 1 3 10 5 2 Traps | -11 -10 -9 -8 -8 -8 -7 -7 -7 -7 -6 -6 -6 -6 -6 -6 -5 -5 -4 -4 -4 -4 -3 -3 -3 -2 -2 -2 -1 -1 ------- Run | Yrd Mat Mat Mat Sto Gar Fac Gar Fac Gar Fac Gar Ext Cet Arc Hub Fac Gar Fac Upp Upp War Pro Res Qua Res Tes Sec Acc Com Traps Triggered 18 | . . 1 1 4 6 . 1 1 . . 2 . . . . . . . . . . . . . . . 1 1 . Indirectly 1 | . . . . . . . 1 . . . . . . . . . . . . . . . . . . . . . . Trap Hack Attempts . | . . . . . . . . . . . . . . . . . . . . . . . . . . . . . . Triggered . | . . . . . . . . . . . . . . . . . . . . . . . . . . . . . . Disarmed . | . . . . . . . . . . . . . . . . . . . . . . . . . . . . . . Reprogrammed . | . . . . . . . . . . . . . . . . . . . . . . . . . . . . . . Reused . | . . . . . . . . . . . . . . . . . . . . . . . . . . . . . . Traps Extracted . | . . . . . . . . . . . . . . . . . . . . . . . . . . . . . . Installed . | . . . . . . . . . . . . . . . . . . . . . . . . . . . . . . Triggered . | . . . . . . . . . . . . . . . . . . . . . . . . . . . . . . Most Traps Carried 3 | . . . . . . . . . . . . 3 . . . . . . . . . . . . . . . . . Machines | -11 -10 -9 -8 -8 -8 -7 -7 -7 -7 -6 -6 -6 -6 -6 -6 -5 -5 -4 -4 -4 -4 -3 -3 -3 -2 -2 -2 -1 -1 ---------- Run | Yrd Mat Mat Mat Sto Gar Fac Gar Fac Gar Fac Gar Ext Cet Arc Hub Fac Gar Fac Upp Upp War Pro Res Qua Res Tes Sec Acc Com Machines Disabled 74 | . . . 1 3 . . 3 9 2 . 1 5 1 3 3 1 . 1 1 . . . 1 10 3 7 13 3 3 Max in Single Turn 9 | . . . 1 1 . . 2 9 1 . 1 1 1 1 1 . . . 1 . . . 1 2 1 1 1 1 1 Garrison Access 10 | . . . . . . 1 . . . . . . . . 1 1 . 1 . . . . 1 1 2 1 1 . . Garrison Relay 1 | . . . . . . . 1 . . . . . . . . . . . . . . . . . . . . . . Phase Generator 2 | . . . . . . . 1 . . . . . . . . . 1 . . . . . . . . . . . . Network Hub 1 | . . . . . . . . . . . . . . . 1 . . . . . . . . . . . . . . Energy Cycler 2 | . . . . . . . . . . . . 1 . . . . . . . . . . . . . . . 1 . Machines Repaired . | . . . . . . . . . . . . . . . . . . . . . . . . . . . . . . Machines Dismantled 9 | . . . . 1 . . . . . . 1 5 1 . 1 . . . . . . . . . . . . . . Machines Sabotaged . | . . . . . . . . . . . . . . . . . . . . . . . . . . . . . . Overloaded Fab Kills . | . . . . . . . . . . . . . . . . . . . . . . . . . . . . . . Hacking | -11 -10 -9 -8 -8 -8 -7 -7 -7 -7 -6 -6 -6 -6 -6 -6 -5 -5 -4 -4 -4 -4 -3 -3 -3 -2 -2 -2 -1 -1 --------- Run | Yrd Mat Mat Mat Sto Gar Fac Gar Fac Gar Fac Gar Ext Cet Arc Hub Fac Gar Fac Upp Upp War Pro Res Qua Res Tes Sec Acc Com Machines Accessed 92 | . 2 3 4 4 2 3 1 11 . 1 1 2 . . 2 4 1 6 . . . . 5 6 9 11 8 4 2 Terminals 59 | . 2 2 3 2 2 2 1 8 . . 1 2 . . 1 2 1 3 . . . . 2 3 2 7 7 4 2 Fabricators 2 | . . . . . . . . . . . . . . . . . . . . . . . . . 1 1 . . . Repair Stations 7 | . . 1 . 1 . . . . . . . . . . . . . 1 . . . . 1 1 2 . . . . Recycling Units 2 | . . . . . . . . . . . . . . . . . . . . . . . 1 . 1 . . . . Scanalyzers 9 | . . . 1 . . . . 2 . . . . . . . 1 . 1 . . . . . 1 1 2 . . . Garrison Access 13 | . . . . 1 . 1 . 1 . 1 . . . . 1 1 . 1 . . . . 1 1 2 1 1 . . Total Hacks 194 | . 5 5 13 5 2 3 3 18 . 1 2 2 . . 3 8 1 13 . . . . 19 12 26 23 11 13 6 Successful 95 | . 2 4 2 5 1 1 1 7 . 1 1 1 . . 2 5 1 7 . . . . 9 11 16 7 7 3 1 Failed 98 | . 3 1 11 . 1 2 2 10 . . 1 1 . . 1 3 . 6 . . . . 10 1 10 16 4 10 5 Catastrophic 24 | . 1 . . . . 1 . 5 . . . . . . . 1 . 1 . . . . 1 1 3 5 1 4 . Database Lockouts 1 | . . . . . . . . 1 . . . . . . . . . . . . . . . . . . . . . Manual 78 | . 6 1 9 . 1 1 . 11 . . . . 1 . 2 2 . 3 . . . . 9 3 9 10 1 7 2 Terminals 127 | . 5 2 11 2 2 2 3 14 . . 2 2 . . 2 5 1 8 . . . . 9 6 7 15 10 13 6 Fabricators 5 | . . . . . . . . . . . . . . . . . . . . . . . . . 2 3 . . . Repair Stations 26 | . . 3 . 2 . . . . . . . . . . . . . 3 . . . . 6 2 10 . . . . Recycling Units 6 | . . . . . . . . . . . . . . . . . . . . . . . 3 . 3 . . . . Scanalyzers 17 | . . . 2 . . . . 3 . . . . . . . 2 . 1 . . . . . 3 2 4 . . . Garrison Access 13 | . . . . 1 . 1 . 1 . 1 . . . . 1 1 . 1 . . . . 1 1 2 1 1 . . Terminal Hacks 46 | . 2 2 1 2 1 . 1 4 . . 1 1 . . . 1 1 2 . . . . 6 4 5 2 6 3 1 Part Schematic 2 | . 2 . . . . . . . . . . . . . . . . . . . . . . . . . . . . Prototype ID Bank 2 | . . . . . . . . . . . . . . . . 1 . . . . . . 1 . . . . . . Open Door 6 | . . . . 2 . . . . . . . . . . . . . . . . . . . . . . 3 . 1 Branch Access Points 5 | . . 1 . . . . . 1 . . . . . . . . . 1 . . . . 1 . 1 . . . . Emergency Access Points 3 | . . . . . 1 . 1 . . . 1 . . . . . . . . . . . . . . . . . . Terminal Index 1 | . . . . . . . . . . . . . . . . . . 1 . . . . . . . . . . . Repair Station Index 1 | . . . . . . . . . . . . . . . . . . . . . . . . . . 1 . . . Garrison Index 1 | . . . . . . . . 1 . . . . . . . . . . . . . . . . . . . . . Unreport Threat 6 | . . 1 . . . . . 2 . . . . . . . . . . . . . . . . 2 1 . . . Locate Traps 5 | . . . . . . . . . . . . . . . . . . . . . . . 1 2 1 . 1 . . Registered Components 1 | . . . . . . . . . . . . . . . . . . . . . . . 1 . . . . . . Zone Layout 12 | . . . 1 . . . . . . . . 1 . . . . . . . . . . 2 2 1 . 2 3 . Garrison Registry 1 | . . . . . . . . . . . . . . . . . 1 . . . . . . . . . . . . Fabricator Hacks 1 | . . . . . . . . . . . . . . . . . . . . . . . . . 1 . . . . Network Status 1 | . . . . . . . . . . . . . . . . . . . . . . . . . 1 . . . . Repair Station Hacks 12 | . . 2 . 2 . . . . . . . . . . . . . 2 . . . . . 2 4 . . . . Scan Component 7 | . . 1 . 1 . . . . . . . . . . . . . 1 . . . . . 1 3 . . . . Repair 5 | . . 1 . 1 . . . . . . . . . . . . . 1 . . . . . 1 1 . . . . Recycling Unit Hacks 1 | . . . . . . . . . . . . . . . . . . . . . . . 1 . . . . . . Retrieve Components 1 | . . . . . . . . . . . . . . . . . . . . . . . 1 . . . . . . Scanalyzer 12 | . . . 1 . . . . 2 . . . . . . . 2 . 1 . . . . . 3 2 1 . . . Insert Component 3 | . . . . . . . . . . . . . . . . . . 1 . . . . . 1 . 1 . . . Retrieve Study 9 | . . . 1 . . . . 2 . . . . . . . 2 . . . . . . . 2 2 . . . . Garrison Access Hacks 13 | . . . . 1 . 1 . 1 . 1 . . . . 1 1 . 1 . . . . 1 1 2 1 1 . . Unlock Access 5 | . . . . 1 . 1 . 1 . 1 . . . . . 1 . . . . . . . . . . . . . Seal Access 8 | . . . . . . . . . . . . . . . 1 . . 1 . . . . 1 1 2 1 1 . . Unauthorized Hacks 10 | . . . . . . . . . . . . . . . 1 1 . 1 . . . . 1 1 2 3 . . . Terminals 7 | . . . . . . . . . . . . . . . 1 1 . 1 . . . . . 1 . 3 . . . Assimilate 1 | . . . . . . . . . . . . . . . . . . . . . . . . . . 1 . . . Botnet 6 | . . . . . . . . . . . . . . . 1 1 . 1 . . . . . 1 . 2 . . . Fabricators 1 | . . . . . . . . . . . . . . . . . . . . . . . . . 1 . . . . Fabnet 1 | . . . . . . . . . . . . . . . . . . . . . . . . . 1 . . . . Repair Stations 2 | . . . . . . . . . . . . . . . . . . . . . . . 1 . 1 . . . . Patch 2 | . . . . . . . . . . . . . . . . . . . . . . . 1 . 1 . . . . Recycling Units . | . . . . . . . . . . . . . . . . . . . . . . . . . . . . . . Scanalyzers . | . . . . . . . . . . . . . . . . . . . . . . . . . . . . . . Garrison Access . | . . . . . . . . . . . . . . . . . . . . . . . . . . . . . . Data Cores Recovered 7 | . . 2 . 1 . . . . . . . 1 . . . . . . . . . . . 1 . 2 . . . Used 1 | . . . . . . . . . . . . . . . . . . . . . . . . . . 1 . . . Hacking Detections 55 | . 2 1 4 1 1 2 1 7 . . 1 2 . . 1 1 . 3 . . . . 4 3 5 8 3 4 1 Full Trace Events 3 | . . 1 . . . . 1 . . . . . . . . . . . . . . . . . 1 . . . . Feedback Events . | . . . . . . . . . . . . . . . . . . . . . . . . . . . . . . Feedback Blocked . | . . . . . . . . . . . . . . . . . . . . . . . . . . . . . . Robot Schematics Acquired 2 | . . . . . . . . . . . . . . . . . . . . . . . . . . . 2 . . Robots Built . | . . . . . . . . . . . . . . . . . . . . . . . . . . . . . . Authchips . | . . . . . . . . . . . . . . . . . . . . . . . . . . . . . . Time . | . . . . . . . . . . . . . . . . . . . . . . . . . . . . . . Total Robot Build Rating . | . . . . . . . . . . . . . . . . . . . . . . . . . . . . . . Part Schematics Acquired 7 | . 2 . . . . . . . . . . . . . . . . . . . . . . 2 . . 3 . . Parts Built . | . . . . . . . . . . . . . . . . . . . . . . . . . . . . . . Authchips . | . . . . . . . . . . . . . . . . . . . . . . . . . . . . . . Time . | . . . . . . . . . . . . . . . . . . . . . . . . . . . . . . Total Part Build Rating . | . . . . . . . . . . . . . . . . . . . . . . . . . . . . . . Part Studies Acquired 9 | . . . 1 . . . . 2 . . . . . . . 2 . . . . . . . 2 2 . . . . Parts Repaired 4 | . . 1 . 1 . . . . . . . . . . . . . 1 . . . . . . 1 . . . . Time 218 | . . 32 . 32 . . . . . . . . . . . . . 22 . . . . . 54 78 . . . . Parts Recycled . | . . . . . . . . . . . . . . . . . . . . . . . . . . . . . . Recycled Matter . | . . . . . . . . . . . . . . . . . . . . . . . . . . . . . . Retrieved Matter . | . . . . . . . . . . . . . . . . . . . . . . . . . . . . . . Retrieved Components 6 | . . . . . . . . . . . . . . . . . . . . . . . 6 . . . . . . Parts Scanalyzed . | . . . . . . . . . . . . . . . . . . . . . . . . . . . . . . Part Schematics Acquired . | . . . . . . . . . . . . . . . . . . . . . . . . . . . . . . Parts Damaged . | . . . . . . . . . . . . . . . . . . . . . . . . . . . . . . Bothacking | -11 -10 -9 -8 -8 -8 -7 -7 -7 -7 -6 -6 -6 -6 -6 -6 -5 -5 -4 -4 -4 -4 -3 -3 -3 -2 -2 -2 -1 -1 ------------ Run | Yrd Mat Mat Mat Sto Gar Fac Gar Fac Gar Fac Gar Ext Cet Arc Hub Fac Gar Fac Upp Upp War Pro Res Qua Res Tes Sec Acc Com Used RIF Installer 5 | . . . . . 1 . 1 . 1 . 1 . . . . . 1 . . . . . . . . . . . . Threat Obfuscator 2 | . . . . . . . . . 1 . 1 . . . . . . . . . . . . . . . . . . Watcher Feeds 1 | . . . . . . . 1 . . . . . . . . . . . . . . . . . . . . . . Patrol Navigation 1 | . . . . . . . 1 . . . . . . . . . . . . . . . . . . . . . . Alert ID Control 1 | . . . . . . . . . . . . . . . . . 1 . . . . . . . . . . . . Robots Hacked 27 | . . . . . . . . . . . . . . . . . . . . . . . . 2 4 4 16 1 . Non-combat 7 | . . . . . . . . . . . . . . . . . . . . . . . . . 4 1 1 1 . Combat 20 | . . . . . . . . . . . . . . . . . . . . . . . . 2 . 3 15 . . Robot Hacks Applied 31 | . . . . . . . . . . . . . . . . . . . . . . . . 2 5 4 19 1 . no_distress 2 | . . . . . . . . . . . . . . . . . . . . . . . . . 1 . . 1 . map_walls 1 | . . . . . . . . . . . . . . . . . . . . . . . . . 1 . . . . drop_inventory 4 | . . . . . . . . . . . . . . . . . . . . . . . . . 2 1 1 . . disable_scanner 20 | . . . . . . . . . . . . . . . . . . . . . . . . 2 . 3 15 . . locate_prototypes 3 | . . . . . . . . . . . . . . . . . . . . . . . . . . . 3 . . formatsys_low 1 | . . . . . . . . . . . . . . . . . . . . . . . . . 1 . . . . Relay Couplers Released 15 | . . . . . . . 5 . . . . . . . . 2 . . . . . . . 2 5 1 . . . Machine Destruction 15 | . . . . . . . 5 . . . . . . . . 2 . . . . . . . 2 5 1 . . . Attached 2 | . . . . . . . . . . 1 . . . . . . . . . . . . . . . . 1 . . Fabnet Peak Effective % 3 | . . . . . . . . . . . . . . . . . . . . . . . . . . . . 3 3 Robots Rewired 19 | . . . . . 2 . . . . . 4 13 . . . . . . . . . . . . . . . . . Allies Hacked 3 | . . . . . . . . . . . . . . . . 1 . . . . . . . . . . 2 . . Hacks Repelled . | . . . . . . . . . . . . . . . . . . . . . . . . . . . . . . Allies | -11 -10 -9 -8 -8 -8 -7 -7 -7 -7 -6 -6 -6 -6 -6 -6 -5 -5 -4 -4 -4 -4 -3 -3 -3 -2 -2 -2 -1 -1 -------- Run | Yrd Mat Mat Mat Sto Gar Fac Gar Fac Gar Fac Gar Ext Cet Arc Hub Fac Gar Fac Upp Upp War Pro Res Qua Res Tes Sec Acc Com Total Allies 45 | . . 1 . . 2 . . . . . 4 21 5 . . . . 3 . . . . . . 5 . 3 . 1 Largest Group 19 | . . 1 . . 2 . . . . . 4 17 19 19 17 16 . 3 2 . . . . . 5 . 3 . 1 Highest-Rated Group 964 | . . 90 . . 56 . . . . . 184 636 964 964 780 741 . 168 112 . . . . . 250 . 87 . 219 Highest-Rated Ally 219 | . . 90 . . 31 . . . . . 46 159 159 159 96 96 . 56 56 . . . . . 63 . 29 . 219 Total Orders 7 | . . . . . . . . . . . . . . 2 2 . . . . . . . . . 3 . . . . STAY 3 | . . . . . . . . . . . . . . 1 1 . . . . . . . . . 1 . . . . FOLLOW 3 | . . . . . . . . . . . . . . 1 1 . . . . . . . . . 1 . . . . AID 1 | . . . . . . . . . . . . . . . . . . . . . . . . . 1 . . . . Ally Attacks 293 | . . 4 . . 12 . . . . . 16 52 26 32 29 69 . 12 5 . . . . . 31 . . . 5 Total Damage 8334 | . . 110 . . 204 . . . . . 521 1526 760 888 333 1787 . 524 257 . . . . . 1133 . . . 291 Kills 51 | . . 2 . . 4 . . . . . . 10 5 3 5 9 . 4 2 . . . . . 7 . . . . Allies Corrupted 9 | . . . . . . . . . . . . . . . . 6 . . 2 . . . . . . . 1 . . Allies Melted . | . . . . . . . . . . . . . . . . . . . . . . . . . . . . . . X0-1V1 Amusement Gains 505 | . 10 5 . 55 10 . 30 20 . . . . . . 30 . 10 40 . . . . 30 20 45 55 50 30 65 Average Entertainment 49 | . 10 8 5 22 63 50 62 82 100 100 100 100 64 26 18 18 26 32 48 27 . 9 24 19 55 32 55 46 61 Good Acts 166 | . . 21 2 3 9 4 10 8 5 . 4 6 4 1 2 3 9 2 . . . . 1 2 18 15 12 9 16 Bad Acts 108 | . . 10 7 6 11 2 5 1 1 . 10 . . . 2 . . 2 4 2 . 1 4 10 4 1 15 5 5 Intel | -11 -10 -9 -8 -8 -8 -7 -7 -7 -7 -6 -6 -6 -6 -6 -6 -5 -5 -4 -4 -4 -4 -3 -3 -3 -2 -2 -2 -1 -1 ------- Run | Yrd Mat Mat Mat Sto Gar Fac Gar Fac Gar Fac Gar Ext Cet Arc Hub Fac Gar Fac Upp Upp War Pro Res Qua Res Tes Sec Acc Com Active Infowar (turns) 11500 | 215 256 . . . . 356 . 1223 26 48 . . . 1 196 908 872 1073 463 534 62 429 466 533 1218 1076 621 721 203 Optics 3076 | . . . . . . . . . . . . . . . . 908 872 1073 20 . . . . . . . . . 203 Structural 9763 | . . . . . . 356 . 1223 26 48 . . . 1 196 853 . 938 463 533 62 429 466 533 1218 1076 621 721 . Seismic 471 | 215 256 . . . . . . . . . . . . . . . . . . . . . . . . . . . . Cloaking 1 | . . . . . . . . . . . . . . . . . . . . 1 . . . . . . . . . Robot Analysis Total . | . . . . . . . . . . . . . . . . . . . . . . . . . . . . . . Derelict Logs Recovered . | . . . . . . . . . . . . . . . . . . . . . . . . . . . . . . Drone Launches . | . . . . . . . . . . . . . . . . . . . . . . . . . . . . . . Drone Recoveries . | . . . . . . . . . . . . . . . . . . . . . . . . . . . . . . Exploration | -11 -10 -9 -8 -8 -8 -7 -7 -7 -7 -6 -6 -6 -6 -6 -6 -5 -5 -4 -4 -4 -4 -3 -3 -3 -2 -2 -2 -1 -1 ------------- Run | Yrd Mat Mat Mat Sto Gar Fac Gar Fac Gar Fac Gar Ext Cet Arc Hub Fac Gar Fac Upp Upp War Pro Res Qua Res Tes Sec Acc Com Turns Passed 29548 | 262 294 1379 988 952 2624 592 1213 1358 638 48 1297 1893 463 309 369 908 872 1073 562 578 62 429 903 1139 2162 1736 2395 1133 917 Spaces Moved 13669 | 112 315 717 410 354 1072 324 537 735 273 28 630 898 187 108 189 499 355 553 256 311 37 242 417 491 976 843 1018 513 269 Core 286 | 5 266 . . . . . . . . . . . . . . . . . . . . . . . . . . . 15 Treads 12057 | 107 49 11 . 144 1072 324 537 735 273 28 630 898 187 108 189 499 355 553 256 311 37 242 417 491 976 843 1018 513 254 Legs . | . . . . . . . . . . . . . . . . . . . . . . . . . . . . . . Wheels 1326 | . . 706 410 210 . . . . . . . . . . . . . . . . . . . . . . . . . Hover . | . . . . . . . . . . . . . . . . . . . . . . . . . . . . . . Flight . | . . . . . . . . . . . . . . . . . . . . . . . . . . . . . . Fastest Speed 50 | 50 50 145 165 160 160 162 160 160 160 160 160 160 160 160 160 160 160 160 170 170 170 170 167 165 163 162 147 143 50 Average Speed 161 | 155 77 154 165 163 193 162 161 160 160 160 160 160 160 160 160 160 160 162 170 170 170 170 167 165 166 163 150 146 140 Slowest Speed 260 | 160 240 240 165 200 216 162 163 160 160 160 160 160 160 160 160 160 160 170 170 170 170 260 170 255 170 170 162 147 147 Overloaded Moves . | . . . . . . . . . . . . . . . . . . . . . . . . . . . . . . Propulsion Burnouts . | . . . . . . . . . . . . . . . . . . . . . . . . . . . . . . Robots Hopped . | . . . . . . . . . . . . . . . . . . . . . . . . . . . . . . Potential Cave-ins . | . . . . . . . . . . . . . . . . . . . . . . . . . . . . . . Cave-ins Triggered . | . . . . . . . . . . . . . . . . . . . . . . . . . . . . . . Teleports 3 | . . . . . . . . . . . . . . . . . . . . . . . . . 1 . 1 1 . Exploration Rate (%) 46 | 5 40 70 47 67 97 13 48 33 50 1 81 82 72 72 31 26 57 25 49 56 9 45 13 69 40 92 67 17 17 Regions Visited 29 Branch Regions 13 Pre-discovered Areas . | . . . . . . . . . . . . . . . . . . . . . . . . . . . . . . Known Exits Taken 12 | . . 1 . 1 . 1 . 1 . 1 . . . . . 1 . 1 . . . . 1 1 1 . 1 1 . Unknown Exits Taken 12 | 1 1 . 1 . . . . . . . . 1 1 1 1 . . . 1 1 1 1 . . . 1 . . . Scrap Searched 4 | . . . . . . . . . . . . . . . . . . . 2 2 . . . . . . . . . Spaces Dug 223 | . 2 . . . 2 6 12 6 . . . . . . 2 29 5 17 8 . . . 15 16 46 22 18 14 3 Terrain Destroyed 542 | . 2 . . 9 14 6 82 9 2 . 1 . . 4 2 29 20 19 8 . . . 40 65 71 37 67 42 13 Melee 22 | . . . . . 2 6 12 2 . . . . . . . . . . . . . . . . . . . . . Projectile 279 | . 2 . . . 3 . 1 7 2 . 1 . . 4 2 29 5 19 8 . . . 15 35 54 28 34 17 13 AOE 241 | . . . . 9 9 . 69 . . . . . . . . . 15 . . . . . 25 30 17 9 33 25 . Terrain Rammed . | . . . . . . . . . . . . . . . . . . . . . . . . . . . . . . Walls Destroyed . | . . . . . . . . . . . . . . . . . . . . . . . . . . . . . . Machines Disabled . | . . . . . . . . . . . . . . . . . . . . . . . . . . . . . . Actions | -11 -10 -9 -8 -8 -8 -7 -7 -7 -7 -6 -6 -6 -6 -6 -6 -5 -5 -4 -4 -4 -4 -3 -3 -3 -2 -2 -2 -1 -1 --------- Run | Yrd Mat Mat Mat Sto Gar Fac Gar Fac Gar Fac Gar Ext Cet Arc Hub Fac Gar Fac Upp Upp War Pro Res Qua Res Tes Sec Acc Com Total 19099 | 154 341 886 581 547 1322 361 702 832 404 31 823 1171 336 216 243 566 593 679 351 344 36 253 558 697 1508 1178 1807 882 697 Wait 2333 | 9 1 66 86 56 18 . 19 . 75 . 112 41 87 84 41 12 155 59 65 14 . . 50 81 273 156 383 198 192 Move 13639 | 111 314 716 409 353 1070 323 535 735 271 28 628 897 186 107 188 499 353 552 255 310 36 241 416 491 975 842 1017 512 269 Hop . | . . . . . . . . . . . . . . . . . . . . . . . . . . . . . . Pick Up 232 | 3 4 27 7 10 15 6 9 11 3 1 11 8 13 2 1 4 6 7 1 . . 2 7 13 13 8 20 10 10 Fast Attach 126 | 6 1 7 3 4 6 2 8 2 3 . 3 3 4 2 . . 3 2 . 2 . . 2 5 4 15 23 3 13 Attach 115 | . 4 4 4 8 14 3 . . 1 2 6 . 3 . . 2 1 1 1 . . 2 3 3 9 4 17 3 20 Detach 26 | 1 3 . . 1 1 . 1 . . . . . 1 . . . . . . . . . . . 5 2 3 1 7 Swap 370 | . 2 5 4 13 15 5 9 24 10 . 4 18 11 5 5 11 20 17 11 8 . 4 37 15 27 21 45 15 9 Drop 252 | . . 15 9 11 6 4 21 11 5 . 7 16 19 4 1 3 7 7 . 2 . 2 6 14 15 24 30 5 8 Fire 1625 | 24 11 44 57 71 110 5 43 46 36 . 36 37 4 12 3 35 48 34 18 8 . 2 37 74 187 98 243 134 168 Melee 136 | . . . . 2 29 9 57 3 . . . . . . . . . . . . . . . . . 8 26 1 1 Ram 4 | . . 2 2 . . . . . . . . . . . . . . . . . . . . . . . . . . Kick . | . . . . . . . . . . . . . . . . . . . . . . . . . . . . . . Crush 7 | . 1 . . . . 4 . . . . . . . . 1 . . . . . . . . 1 . . . . . Escape Stasis 18 | . . . . 10 8 . . . . . . . . . . . . . . . . . . . . . . . . Rewire 142 | . . . . . 30 . . . . . 8 104 . . . . . . . . . . . . . . . . . Trap . | . . . . . . . . . . . . . . . . . . . . . . . . . . . . . . Miscellaneous 74 | . . . . 8 . . . . . . 8 47 8 . 3 . . . . . . . . . . . . . . Route ------- -11/Scrapyard -10/Materials (discovered 3 exits: *Mat / [*Min] / [*Sub]) -9/Materials (discovered 5 exits: *Mat x3 / *Min x2) -8/Materials (discovered 2 exits: *Fac / *Sto) -8/Storage (discovered 2 exits: *Fac / Gar) -8/Garrison (discovered 3 exits: *Fac x3) -7/Factory -7/Garrison -7/Factory (discovered 4 exits: *Fac / *Low x2 / Gar) -7/Garrison (discovered 2 exits: *Fac x2) -6/Factory -6/Garrison (discovered 2 exits: *Ext x2) -6/Extension (discovered 2 exits: *Fac / *Cet) -6/Cetus (discovered 2 exits: *Fac / [*Arc]) -6/Archives (discovered 2 exits: *Fac / *Hub) -6/Hub_04(d) (discovered 3 exits: *Fac x3) -5/Factory -5/Garrison (discovered 3 exits: *Fac x3) -4/Factory (discovered 3 exits: *Upp x2 / Arm) -4/Upper Caves -4/Upper Caves (discovered 2 exits: Res / [*War]) -4/Warlord -3/Proximity Caves -3/Research (discovered 3 exits: Res / *Qua x2) -3/Quarantine -2/Research (discovered 4 exits: *Acc x2 / *Tes x2) -2/Testing (discovered 3 exits: *Acc / *Sec / [*Frg]) -2/Section 7 -1/Access -1/Command (discovered 1 exit: Sur) History --------- Turn | Location | Event 15 | -11/Scrapyard | Discovered new exit (range 16) 263 | -11/Scrapyard | Entered Materials 318 | -10/Materials | Build established: Mutant 371 | -10/Materials | Discovered new exit (range 16) 408 | -10/Materials | Discovered new exit (range 8) 499 | -10/Materials | Discovered new exit (range 6) 519 | -10/Materials | Prayed at D.C.S.S. Altar Unit 557 | -10/Materials | Entered another Materials area 557 | -9/Materials | Evolved 2 slots: Propulsion x1, Weapon x1 663 | -9/Materials | Core integrity permanently improved by X0-1V1 (+200) 775 | -9/Materials | Discovered new exit (range 6) 856 | -9/Materials | Build established: Gunner 903 | -9/Materials | Discovered new exit (range 10) 995 | -9/Materials | Discovered new exit (range 12) 1092 | -9/Materials | Discovered new exit (range 3) 1122 | -9/Materials | X0-1V1 sent allied H-61 Shepherd (x1) 1140 | -9/Materials | Identified exit to Mines 1270 | -9/Materials | X0-1V1 added 0b10 threat records associated with you (minor) 1274 | -9/Materials | X0-1V1 mutated your Propulsion slot to Weapon slot 1279 | -9/Materials | X0-1V1 announced a LAN party 1289 | -9/Materials | X0-1V1 foreshadows a heat wave 1311 | -9/Materials | X0-1V1 put everyone to sleep 1315 | -9/Materials | X0-1V1 sent you to a vault 1317 | -9/Materials | X0-1V1 sent hostile S-10 Pest (x3) 1327 | -9/Materials | X0-1V1 caused items to flee you 1335 | -9/Materials | Identified exit to Materials 1335 | -9/Materials | X0-1V1 revealed exit location to -8/Materials 1337 | -9/Materials | X0-1V1 sent you into danger 1389 | -9/Materials | Weapon slot count temporarily expanded by X0-1V1 (+4) 1394 | -9/Materials | X0-1V1 whisked you away to safety 1569 | -9/Materials | Ambient heat levels rising (+10) 1625 | -9/Materials | Items stopped fleeing you 1766 | -9/Materials | Ambient heat levels rising (+10) 1781 | -9/Materials | X0-1V1 activates XOMVISION 1794 | -9/Materials | Repaired Hvy. Assault Rifle 1936 | -9/Materials | Entered another Materials area 1936 | -8/Materials | Evolved 2 slots: Propulsion x1, Utility x1 1943 | -8/Materials | Weapon slot count reverted to normal (-4) 2087 | -8/Materials | X0-1V1 upgraded hostiles (x2) 2144 | -8/Materials | Heat dissipation permanently improved by X0-1V1 (+20; -100 max core) 2187 | -8/Materials | X0-1V1 added 0b10 threat records associated with you (considerable) 2188 | -8/Materials | Discovered new exit (range 8) 2356 | -8/Materials | Discovered new exit (range 16) 2608 | -8/Materials | X0-1V1 whisked you away to safety 2623 | -8/Materials | Build established: Scavenger-Tank 2903 | -8/Materials | System corruption reached 10% 2924 | -8/Materials | Entered Storage 2988 | -8/Storage | Repaired Hvy. Assault Rifle 3372 | -8/Storage | X0-1V1 vaporized surrounding terrain (radius 23) 3436 | -8/Storage | X0-1V1 announced a LAN party 3590 | -8/Storage | Destroyed 13 combat bots 3600 | -8/Storage | Discovered new exit (range 16) 3616 | -8/Storage | Lost 8 parts (1p3n1u3w) 3875 | -8/Storage | Identified exit to Garrison 3876 | -8/Storage | Entered Garrison 3899 | -8/Garrison | Build established: Scavenger-Gunner 3946 | -8/Garrison | Sight range permanently improved by X0-1V1 (+2; -300 max core) 4027 | -8/Garrison | System corruption reached 30% 4069 | -8/Garrison | X0-1V1 caused items to flee you 4245 | -8/Garrison | Build established: Scavenger-Tank 4296 | -8/Garrison | Triggered checkpoint 4301 | -8/Garrison | Triggered checkpoint 4383 | -8/Garrison | Triggered checkpoint 4408 | -8/Garrison | Items stopped fleeing you 4425 | -8/Garrison | Triggered checkpoint 4659 | -8/Garrison | Triggered checkpoint 4780 | -8/Garrison | X0-1V1 upgraded hostiles (x1) 4807 | -8/Garrison | Discovered new exit (range 11) 5104 | -8/Garrison | Triggered checkpoint 5229 | -8/Garrison | Discovered new exit (range 3) 5247 | -8/Garrison | Identified exit to Factory 5247 | -8/Garrison | X0-1V1 revealed exit location to -7/Factory 5347 | -8/Garrison | Lost 3 parts (1p2n) 5603 | -8/Garrison | Build established: Tank 5628 | -8/Garrison | Triggered checkpoint 5790 | -8/Garrison | Triggered checkpoint 5810 | -8/Garrison | X0-1V1 sent hostile B-36 Bruiser (x1) 5923 | -8/Garrison | Core integrity restored by X0-1V1 (+63) 6100 | -8/Garrison | Build established: Scavenger-Tank 6335 | -8/Garrison | X0-1V1 activates XOMVISION 6461 | -8/Garrison | Installed Relay Interface Framework 6500 | -8/Garrison | Entered Factory 6500 | -7/Factory | Evolved 2 slots: Propulsion x1, Utility x1 6574 | -7/Factory | X0-1V1 released a cloud of subatomizers 6943 | -7/Factory | X0-1V1 enhanced Transport squad support 7062 | -7/Factory | Identified exit to Garrison 7092 | -7/Factory | Entered Garrison 7276 | -7/Garrison | Expanded RIF knowledge: Patrol Navigation 7319 | -7/Garrison | Triggered checkpoint 7404 | -7/Garrison | Triggered checkpoint 7418 | -7/Garrison | Triggered checkpoint 7432 | -7/Garrison | X0-1V1 vaporized surrounding terrain (radius 18) 7445 | -7/Garrison | Destroyed 8 combat bots 7510 | -7/Garrison | Discovered new exit (range 9) 7549 | -7/Garrison | Triggered checkpoint 7817 | -7/Garrison | Phase Generator disabled 8024 | -7/Garrison | Expanded RIF knowledge: Watcher Feeds 8120 | -7/Garrison | X0-1V1 activates XOMVISION 8259 | -7/Garrison | Garrison Relay disabled 8305 | -7/Garrison | Entered Factory 8771 | -7/Factory | X0-1V1 caused items to flee you 8784 | -7/Factory | Central database locked down 8904 | -7/Factory | Discovered new exit (range 6) 9045 | -7/Factory | Items stopped fleeing you 9150 | -7/Factory | X0-1V1 put everyone to sleep 9313 | -7/Factory | X0-1V1 sent you to a vault 9486 | -7/Factory | Identified exit to Lower Caves 9663 | -7/Factory | Identified exit to Garrison 9663 | -7/Factory | Entered Garrison 9713 | -7/Garrison | Triggered checkpoint 9856 | -7/Garrison | Expanded RIF knowledge: Threat Obfuscation 9922 | -7/Garrison | X0-1V1 activates XOMVISION 9940 | -7/Garrison | Triggered checkpoint 10057 | -7/Garrison | Triggered checkpoint 10185 | -7/Garrison | Triggered checkpoint 10256 | -7/Garrison | Identified exit to Factory 10256 | -7/Garrison | X0-1V1 revealed exit location to -6/Factory 10269 | -7/Garrison | Discovered exit to Factory (range 11) 10293 | -7/Garrison | Core integrity restored by X0-1V1 (+140) 10301 | -7/Garrison | Entered Factory 10301 | -6/Factory | Evolved 2 slots: Utility x2 10349 | -6/Factory | Identified exit to Garrison 10349 | -6/Factory | Entered Garrison 10369 | -6/Garrison | Triggered checkpoint 10444 | -6/Garrison | X0-1V1 caused items to flee you 10651 | -6/Garrison | Triggered checkpoint 10651 | -6/Garrison | Spotted B-75 Beast 10669 | -6/Garrison | Destroyed B-75 Beast 10694 | -6/Garrison | Lost 3 allies 10734 | -6/Garrison | Triggered checkpoint 10759 | -6/Garrison | Triggered checkpoint 10767 | -6/Garrison | Items stopped fleeing you 10780 | -6/Garrison | X0-1V1 caused items to flee you 10802 | -6/Garrison | Triggered checkpoint 10847 | -6/Garrison | X0-1V1 vaporized surrounding terrain (radius 21) 10937 | -6/Garrison | X0-1V1 mutated your Weapon slot to Power slot 10995 | -6/Garrison | X0-1V1 vaporized surrounding terrain (radius 19) 11158 | -6/Garrison | Items stopped fleeing you 11209 | -6/Garrison | Spotted B-75 Beast 11341 | -6/Garrison | Discovered new exit (range 19) 11404 | -6/Garrison | Found Quantum Capacitor 11405 | -6/Garrison | X0-1V1 vaporized surrounding terrain (radius 21) 11568 | -6/Garrison | X0-1V1 activates XOMVISION 11588 | -6/Garrison | Discovered new exit (range 9) 11601 | -6/Garrison | Expanded RIF knowledge: Threat Obfuscation 11646 | -6/Garrison | Entered Extension 11807 | -6/Extension | Rescued a captive Derelict 11887 | -6/Extension | Rescued a captive Derelict 12082 | -6/Extension | Rescued A7 12814 | -6/Extension | Spotted B-75 Beast 12826 | -6/Extension | Destroyed B-75 Beast 12859 | -6/Extension | Lost 3 allies 12885 | -6/Extension | Spotted B-75 Beast 12896 | -6/Extension | Destroyed B-75 Beast 13025 | -6/Extension | Rescued a captive Derelict 13025 | -6/Extension | Rescued a captive Derelict 13257 | -6/Extension | Rescued a captive Derelict 13259 | -6/Extension | Rescued a captive Derelict 13297 | -6/Extension | X0-1V1 destroyed Energy Cycler 13297 | -6/Extension | Energy Cycler disabled 13297 | -6/Extension | Rescued a captive Derelict 13298 | -6/Extension | Rescued a captive Derelict 13298 | -6/Extension | Rescued a captive Derelict 13471 | -6/Extension | Discovered new exit (range 10) 13484 | -6/Extension | Discovered new exit (range 6) 13539 | -6/Extension | Entered Cetus 13539 | -6/Cetus | Accompanied by 17 allies (A7) 13544 | -6/Cetus | Acquired a Cetus Manufacturing Module code from A7 13593 | -6/Cetus | Spotted Cetus Guard 13593 | -6/Cetus | Spotted Cetus Guard 13596 | -6/Cetus | Spotted Cetus Guard 13596 | -6/Cetus | Spotted Cetus Guard 13597 | -6/Cetus | Allies destroyed Cetus Guard 13600 | -6/Cetus | Destroyed Cetus Guard 13603 | -6/Cetus | Allies destroyed Cetus Guard 13604 | -6/Cetus | Destroyed Cetus Guard 13693 | -6/Cetus | Started Cetus Manufacturing Module 13718 | -6/Cetus | Manufactured an Enhanced Grunt 13731 | -6/Cetus | Escorted A7 to Cetus Mainframe 13743 | -6/Cetus | Manufactured an Enhanced Grunt 13765 | -6/Cetus | Discovered new exit (range 20) 13768 | -6/Cetus | Manufactured an Enhanced Grunt 13793 | -6/Cetus | Manufactured an Enhanced Grunt 13793 | -6/Cetus | Discovered new exit (range 27) 13807 | -6/Cetus | Spotted Cetus Guard 13807 | -6/Cetus | Spotted Cetus Guard 13809 | -6/Cetus | Spotted Cetus Guard 13810 | -6/Cetus | Spotted Cetus Guard 13811 | -6/Cetus | Allies destroyed Cetus Guard 13812 | -6/Cetus | Destroyed Cetus Guard 13816 | -6/Cetus | Allies destroyed Cetus Guard 13818 | -6/Cetus | Manufactured an Enhanced Grunt 13821 | -6/Cetus | Allies destroyed Cetus Guard 13835 | -6/Cetus | Met Revision 17 13887 | -6/Cetus | Forcibly received Sfc. Transmogifier from X0-1V1 13989 | -6/Cetus | Build established: Commander-Tank 14002 | -6/Cetus | Entered Archives 14002 | -6/Archives | Accompanied by 19 allies (A7) 14007 | -6/Archives | Received a hacking code to weaken MAIN.C 14253 | -6/Archives | Discovered new exit (range 18) 14261 | -6/Archives | Discovered new exit (range 13) 14311 | -6/Archives | Entered Hub_04(d) 14311 | -6/Hub_04(d) | Accompanied by 17 allies 14319 | -6/Hub_04(d) | Discovered new exit (range 18) 14420 | -6/Hub_04(d) | Discovered new exit (range 39) 14430 | -6/Hub_04(d) | X0-1V1 made a cryptic comment about sterilization and BL-4Z3 14502 | -6/Hub_04(d) | Discovered new exit (range 21) 14524 | -6/Hub_04(d) | Sterilization system engaged 14524 | -6/Hub_04(d) | Non-combat units ordered to evacuate 14605 | -6/Hub_04(d) | Core integrity restored by X0-1V1 (+123) 14620 | -6/Hub_04(d) | Network Hub disabled 14624 | -6/Hub_04(d) | Combat units ordered to evacuate 14680 | -6/Hub_04(d) | Entered Factory 14680 | -5/Factory | Accompanied by 16 allies 14680 | -5/Factory | Evolved 2 slots: Utility x2 15581 | -5/Factory | X0-1V1 activates XOMVISION 15588 | -5/Factory | Identified exit to Garrison 15588 | -5/Factory | Entered Garrison 15614 | -5/Garrison | Triggered checkpoint 15641 | -5/Garrison | Build established: Scavenger-Tank 15756 | -5/Garrison | Identified exit to Factory 15756 | -5/Garrison | X0-1V1 revealed exit location to -4/Factory 15769 | -5/Garrison | Triggered checkpoint 15969 | -5/Garrison | Discovered exit to Factory (range 35) 15969 | -5/Garrison | Discovered exit to Factory (range 64) 15969 | -5/Garrison | Discovered exit to Factory (range 79) 16009 | -5/Garrison | Triggered checkpoint 16042 | -5/Garrison | Triggered checkpoint 16049 | -5/Garrison | Triggered checkpoint 16059 | -5/Garrison | Triggered checkpoint 16262 | -5/Garrison | Expanded RIF knowledge: Alert ID Control 16332 | -5/Garrison | X0-1V1 destroyed Phase Generator 16332 | -5/Garrison | Phase Generator disabled 16342 | -5/Garrison | X0-1V1 activates XOMVISION 16460 | -5/Garrison | Entered Factory 16460 | -4/Factory | Evolved 2 slots: Propulsion x1, Utility x1 16508 | -4/Factory | X0-1V1 caused items to flee you 16592 | -4/Factory | Identified exit to Upper Caves 16592 | -4/Factory | Identified exit to Armory 16777 | -4/Factory | Items stopped fleeing you 16934 | -4/Factory | X0-1V1 put everyone to sleep 17050 | -4/Factory | X0-1V1 sent you to a vault 17438 | -4/Factory | Repaired Gatling Laser+ 17497 | -4/Factory | Found Prototype Hackware 17533 | -4/Factory | Entered Upper Caves 17533 | -4/Upper Caves | Accompanied by 3 allies 17535 | -4/Upper Caves | Attracted the attention of an 0b10 checkpoint 17570 | -4/Upper Caves | X0-1V1 caused items to flee you 17574 | -4/Upper Caves | Lost 3 allies 17744 | -4/Upper Caves | X0-1V1 vaporized surrounding terrain (radius 23) 18014 | -4/Upper Caves | Items stopped fleeing you 18071 | -4/Upper Caves | Discovered new exit (range 17) 18095 | -4/Upper Caves | Entered another Upper Caves area 18095 | -4/Upper Caves | Discovered new exit (range 10) 18443 | -4/Upper Caves | X0-1V1 sent you into danger 18497 | -4/Upper Caves | Encountered a Warlord checkpoint 18532 | -4/Upper Caves | Discovered new exit (range 16) 18673 | -4/Upper Caves | Entered Warlord 18721 | -4/Warlord | Discovered new exit (range 9) 18735 | -4/Warlord | Entered Proximity Caves 19099 | -3/Proximity Caves | Discovered new exit (range 11) 19126 | -3/Proximity Caves | System corruption reached 10% 19164 | -3/Proximity Caves | Entered Research 19164 | -3/Research | Evolved 2 slots: Power x1, Propulsion x1 19206 | -3/Research | X0-1V1 redirected Transport squads to designated parking area 19292 | -3/Research | Identified exit to Research 19292 | -3/Research | X0-1V1 revealed exit location to -2/Research 19364 | -3/Research | Revision forces began assault on 0b10 19377 | -3/Research | Identified exit to Quarantine 19385 | -3/Research | Met up with Revision 17++ 19862 | -3/Research | Spotted B-86 Titan 19864 | -3/Research | Research terminal network offline 19956 | -3/Research | X0-1V1 mutated your Utility slot to Propulsion slot 20002 | -3/Research | X0-1V1 added 0b10 threat records associated with you (major) 20067 | -3/Research | Entered Quarantine 20109 | -3/Quarantine | Found Alien Impact Weapon 20166 | -3/Quarantine | Found Alien Artifact 20166 | -3/Quarantine | Identified Dimensional Node Initializer 20166 | -3/Quarantine | Initialized slip node 20175 | -3/Quarantine | Found Dimensional Node Initializer 20194 | -3/Quarantine | Found Alien Artifact 20275 | -3/Quarantine | Found Alien Slashing Weapon 20303 | -3/Quarantine | Cryocooling Duct disabled 20318 | -3/Quarantine | Ambient heat levels rising (+20) 20318 | -3/Quarantine | Non-combat units ordered to evacuate 20437 | -3/Quarantine | X0-1V1 mutated your Weapon slot to Propulsion slot 20541 | -3/Quarantine | System corruption reached 10% 20737 | -3/Quarantine | Build established: Scavenger-Mutant 20782 | -3/Quarantine | Discovered exit to Research (range 10) 20846 | -3/Quarantine | X0-1V1 mutated your Power slot to Weapon slot 20866 | -3/Quarantine | Found Prototype Launcher 20887 | -3/Quarantine | Identified Tactical Quantum Warhead 21007 | -3/Quarantine | Found Alien Artifact 21127 | -3/Quarantine | X0-1V1 announced a LAN party 21142 | -3/Quarantine | Build established: Scavenger-Tank 21206 | -3/Quarantine | Entered Research 21206 | -2/Research | Evolved 2 slots: Power x1, Utility x1 21210 | -2/Research | Identified Sigix Broadsword 21328 | -2/Research | Spotted B-90 Cyclops 21328 | -2/Research | X0-1V1 sent you into danger 21345 | -2/Research | Identified Transdimensional Reconstructor 21345 | -2/Research | Warped through subspace 21519 | -2/Research | Build established: Scavenger-Mutant 21546 | -2/Research | Repaired Broken Adv. Cooling System 21590 | -2/Research | X0-1V1 mutated your Propulsion slot to Weapon slot 21870 | -2/Research | Identified exit to Access 21870 | -2/Research | X0-1V1 revealed exit location to -1/Access 22050 | -2/Research | X0-1V1 sent you to a vault 22084 | -2/Research | Garrison activated, responded to threat 22338 | -2/Research | X0-1V1 activates XOMVISION 22381 | -2/Research | Found Imp. Powered Armor 22709 | -2/Research | Weapon slot count temporarily expanded by X0-1V1 (+3) 22833 | -2/Research | X0-1V1 activates XOMVISION 22900 | -2/Research | Identified exit to Testing 22965 | -2/Research | Watched by a mysterious "MATRIX" hacker 23215 | -2/Research | X0-1V1 activates XOMVISION 23231 | -2/Research | Weapon slot count reverted to normal (-3) 23283 | -2/Research | X0-1V1 revealed exit location to -1/Access 23368 | -2/Research | Entered Testing 23443 | -2/Testing | Found Prototype Launcher 23467 | -2/Testing | Found Prototype Energy Cannon 23467 | -2/Testing | Identified Disintegrator 23745 | -2/Testing | Found Prototype Hackware 23745 | -2/Testing | Identified Ghost Barrier 23822 | -2/Testing | X0-1V1 sent you to a vault 23987 | -2/Testing | Build established: Mutant 24606 | -2/Testing | X0-1V1 revealed exit location to -1/Access 24646 | -2/Testing | Identified Hellfire Missile Launcher 24726 | -2/Testing | Found Prototype Device 24726 | -2/Testing | Identified AEGIS Remote Shield 24794 | -2/Testing | X0-1V1 put everyone to sleep 24869 | -2/Testing | Identified Core Stripper 24881 | -2/Testing | Spotted Fortress 24881 | -2/Testing | X0-1V1 activates XOMVISION 24904 | -2/Testing | Destroyed Fortress 24925 | -2/Testing | Found Prototype Reactor 24925 | -2/Testing | Identified Vortex Chain Reactor 25067 | -2/Testing | Discovered new exit (range 5) 25067 | -2/Testing | Discovered new exit (range 6) 25104 | -2/Testing | Entered Section 7 25186 | -2/Section 7 | Found Integrated Dissipator 25186 | -2/Section 7 | Installed Integrated Dissipator, increased core heat dissipation (+20) 25215 | -2/Section 7 | X0-1V1 added 0b10 threat records associated with you (considerable) 25256 | -2/Section 7 | Spotted S7 Guard 25271 | -2/Section 7 | Destroyed S7 Guard 25308 | -2/Section 7 | Found Prototype Protection 25324 | -2/Section 7 | Found Core Membrane 25325 | -2/Section 7 | Installed Core Membrane, gained immunity to corruption 25400 | -2/Section 7 | X0-1V1 sent allied Savage (x3) 25463 | -2/Section 7 | Spotted B-90 Cyclops 25582 | -2/Section 7 | Spotted S7 Guard 25596 | -2/Section 7 | Destroyed S7 Guard 25674 | -2/Section 7 | Found Alien Artifact 25717 | -2/Section 7 | Weapon slot count temporarily expanded by X0-1V1 (+2) 25752 | -2/Section 7 | Discovered exit to Access (range 19) 25768 | -2/Section 7 | Initialized slip node 25849 | -2/Section 7 | X0-1V1 sent you into danger 25895 | -2/Section 7 | X0-1V1 activates XOMVISION 25942 | -2/Section 7 | X0-1V1 announced a LAN party 25947 | -2/Section 7 | Spotted S7 Guard 25962 | -2/Section 7 | Destroyed S7 Guard 25976 | -2/Section 7 | Found Alien Artifact 26041 | -2/Section 7 | Weapon slot count reverted to normal (-2) 26086 | -2/Section 7 | X0-1V1 caused items to flee you 26259 | -2/Section 7 | Items stopped fleeing you 26270 | -2/Section 7 | Found Integrity Redistributor 26332 | -2/Section 7 | Found Quantum Capacitor 26424 | -2/Section 7 | Spotted Executioner 26425 | -2/Section 7 | Spotted Executioner 26490 | -2/Section 7 | Destroyed Executioner 26494 | -2/Section 7 | Destroyed Executioner 26509 | -2/Section 7 | Found Prototype Processor 26509 | -2/Section 7 | Identified Exp. Targeting Computer 26559 | -2/Section 7 | Found Transdimensional Reconstructor 26562 | -2/Section 7 | Found Transdimensional Reconstructor 26729 | -2/Section 7 | Spotted Striker 26729 | -2/Section 7 | Spotted Striker 26841 | -2/Section 7 | X0-1V1 put everyone to sleep 26905 | -2/Section 7 | Spotted Executioner 26907 | -2/Section 7 | Spotted Executioner 26927 | -2/Section 7 | Destroyed Executioner 26929 | -2/Section 7 | Destroyed Executioner 26937 | -2/Section 7 | Found Prototype Processor 26937 | -2/Section 7 | Identified Exp. Core Analyzer 26948 | -2/Section 7 | Found Exp. Targeting Computer 27065 | -2/Section 7 | Spotted B-99 Colossus 27114 | -2/Section 7 | Found Integrated Dissipator 27114 | -2/Section 7 | Installed Integrated Dissipator, increased core heat dissipation (+20) 27117 | -2/Section 7 | Found Integrated Dissipator 27117 | -2/Section 7 | Installed Integrated Dissipator, increased core heat dissipation (+20) 27235 | -2/Section 7 | Found LRC Energy Well 27235 | -2/Section 7 | Installed LRC Energy Well, increased energy storage capacity (+250) 27241 | -2/Section 7 | Found LRC Armor 27241 | -2/Section 7 | Installed LRC Armor, increased core integrity (+250) 27270 | -2/Section 7 | Build established: Scavenger-Mutant 27296 | -2/Section 7 | Identified Subatomic Replicator 27296 | -2/Section 7 | Used Subatomic Replicator to replicate Integrity Redistributor 27300 | -2/Section 7 | X0-1V1 enhanced Transport squad support 27354 | -2/Section 7 | Warped through subspace to slip node 27494 | -2/Section 7 | Used Integrity Redistributor, redistributed integrity from core (-366) 27495 | -2/Section 7 | Core integrity fell below 50% 27499 | -2/Section 7 | Entered Access 27499 | -1/Access | Evolved 2 slots: Utility x2 27499 | -1/Access | Identified Hvy. Regenerative Plating 27552 | -1/Access | Identified exit to Command 27552 | -1/Access | X0-1V1 revealed exit location to -1/Command 27760 | -1/Access | X0-1V1 destroyed Energy Cycler 27760 | -1/Access | Energy Cycler disabled 28110 | -1/Access | Destroyed 7 combat bots 28189 | -1/Access | Spotted B-99 Colossus 28196 | -1/Access | Warped through subspace 28249 | -1/Access | First assault squad dispatched 28302 | -1/Access | Destroyed B-99 Colossus 28379 | -1/Access | Found Quantum Capacitor 28595 | -1/Access | X0-1V1 activates XOMVISION 28632 | -1/Access | Entered Command 28822 | -1/Command | Spotted M Guard 28822 | -1/Command | Spotted M Guard 28824 | -1/Command | Spotted Combat Programmer 28824 | -1/Command | Spotted Combat Programmer 28859 | -1/Command | Destroyed Combat Programmer 28879 | -1/Command | Destroyed Combat Programmer 28890 | -1/Command | Destroyed M Guard 28903 | -1/Command | Destroyed M Guard 28903 | -1/Command | All MAIN.C guards destroyed 28912 | -1/Command | Lost 3 parts (2p1n) 28916 | -1/Command | Found Corrupted Prototype Energy Cannon 28922 | -1/Command | Found Corrupted Prototype Device 28922 | -1/Command | Identified Thermal Barrier 28928 | -1/Command | X0-1V1 vaporized surrounding terrain (radius 24) 28929 | -1/Command | Found Corrupted Prototype Reactor 28940 | -1/Command | Found Corrupted AEGIS Remote Shield 28949 | -1/Command | Spotted Alpha 7 28949 | -1/Command | Spotted Alpha 7 28949 | -1/Command | Spotted Striker 28949 | -1/Command | Spotted Striker 28949 | -1/Command | Spotted Executioner 28949 | -1/Command | Spotted Executioner 28949 | -1/Command | Spotted Executioner 28949 | -1/Command | Spotted Executioner 28949 | -1/Command | X0-1V1 sent you into danger 28950 | -1/Command | Spotted B-99 Colossus 28950 | -1/Command | Spotted B-99 Colossus 28978 | -1/Command | Destroyed Executioner 28979 | -1/Command | Destroyed Striker 28986 | -1/Command | Destroyed Executioner 28996 | -1/Command | Destroyed Executioner 28997 | -1/Command | X0-1V1 turns hostiles against one another 29004 | -1/Command | Identified Zero-point Reactor 29006 | -1/Command | Destroyed Executioner 29015 | -1/Command | Destroyed Striker 29024 | -1/Command | Lost 13 parts (2p3n5u3w) 29029 | -1/Command | Destroyed Alpha 7 29042 | -1/Command | Destroyed B-99 Colossus 29063 | -1/Command | Destroyed 8 combat bots 29096 | -1/Command | Destroyed Alpha 7 29270 | -1/Command | Found Corrupted Hvy. Regenerative Plating 29288 | -1/Command | Identified Cld. Nova Cannon 29291 | -1/Command | Used Integrity Redistributor, redistributed integrity from core (-421) 29292 | -1/Command | Core integrity fell below 50% 29341 | -1/Command | Met MAIN.C 29347 | -1/Command | 0b10 Conduit disabled 29391 | -1/Command | Destroyed MAIN.C Shell 29393 | -1/Command | MAIN.C activated Command garrisons 29425 | -1/Command | Spotted B-99 Colossus 29425 | -1/Command | X0-1V1 whisked you away to safety 29465 | -1/Command | Identified exit to Surface 29465 | -1/Command | X0-1V1 revealed exit location to -0/Surface 29542 | -1/Command | Released all parts (19) 29545 | -1/Command | Core integrity fell below 20% 29549 | -1/Command | Destroyed by X-87 Electro with Compact HERF Cannon Last Messages --------------- 29542_ Released Linear Accelerator. 29542_ Linear Accelerator crushed and broken. 29542_ Acquired 19 matter. 29543_ X0-1V1 is amused. 29544_ C-45 Heavy ARC bursts open, deploying its payload. 29544_ P-80 Master unfolds itself. 29544_ P-80 Master resets P-80 Master, system corruption cleaned. 29544_ Knocked back. 29545_ X0-1V1 briefly opens a portal to the matter dimension. 29546_ Acquired 432 matter. 29547_ P-80 Master resets P-80 Master, system corruption cleaned. 29547_ Knocked back. 29548_ Acquired 11 matter. 29549_ Core Membrane filtered system corruption (1). 29549_ X0-1V1 howls with laughter! Map ----- +----------------------------------------------------+ | ???????????????????# #??????????????????????????? | | ???????????????????# #??????????????????????????? | | ???????????????????# #??????????????????????????? | | ???????????????????? #??????????????????????????? | | ???????????????????? #??????????????????????????? | | ???????????????????? #??????????????????????????? | | ???????????????????? #??????????????????????????? | | ???????????????????? #???#??????????????????????? | | ???????????????????? ???? [?????????????????????? | | ???????????????????? ???? ????????????????????? | | ???????????????????# ????? ????????????????????? | | ???????????????????# ?????? ????????????????????? | | ???????????????????# ?????? ???????????????????? | | ???????????????????# ?????? ???????????????????? | | ???????????????????# ??????#+#??????????????????? | | ???????????????????# ####### ####???????????????? | | ???????????????????# R ???????????????? | | ???????????????????# !h ???????????????? | | ????????????????#### ???????????????? | | ????????????????# "" #???????????????? | | ????????????????#""" !x! #???????????????? | | ????????????????#"T !!!h #???????????????? | | ????????????????#""" !! ###?????????????? | | ????????????????# "" #####/#!###???????????? | | ???????????????????# # %%%!!/ ]#???????????? | | ???????????????????#] @ # %!!]]*#???????????? | | ???????????????????# #%%%% !""%#???????????? | | ???????????????????# # """#???????????? | | ???????????????????# + %""""#???????????? | | ???????????????????#+## # "" #???????????? | | ??????????????????????# # #???????????? | | ??????????????????????+ # #???????????? | | ??????????????????????################???????????? | | ?????????????????????????????????????????????????? | | ?????????????????????????????????????????????????? | | ?????????????????????????????????????????????????? | | ?????????????????????????????????????????????????? | | | | | | | | | | | | | | | | | | | | | | | | | | | +----------------------------------------------------+ Best States ------------- Heat Dissipation 225 Coolant Potential 120 Energy Generation 77 Energy Capacity 2250 Matter Stores 1000 Matter Capacity 1000 Sight Range 30 Terrain Scan Density 10 EM Shielding 4 Armor Coverage 1200 Resistance: KI 19 Resistance: TH 38 Resistance: EM 46 Point Defense Rating 240 Weapon Cycling 25 Evasion (%) 50 Targeting Accuracy 12 Core Analysis 8 Recoil Reduction 8 Energy Filtering 30 Offensive Hacking 14 Relay Coupler Types 1 Relay Coupler Value 99 Item Schematics ----------------- Hcp. Storage Unit | -10/Materials | Hacked Huge Storage Unit | -10/Materials | Hacked Exp. Coolant Injector | -3/Quarantine | Archive Exp. Utility Shielding | -3/Quarantine | Archive Prc. Phase Gun | -2/Section 7 | Archive Exp. Melee Analysis Suite | -2/Section 7 | Archive Cld. Phase Cannon | -2/Section 7 | Archive Robot Schematics ------------------ A-15 Conveyor | -2/Section 7 | Archive T-07 Excavator | -2/Section 7 | Archive Fabricated ------------ Nothing Repaired ---------- Hvy. Assault Rifle | 6% | -9/Materials Hvy. Assault Rifle | 43% | -8/Storage Gatling Laser | 42% | -4/Factory Adv. Cooling System | 70% | -2/Research | Broken Studied --------- Lgt. Treads | -8/Materials | Hacked Gatling Laser | -7/Factory | Hacked Flak Gun | -7/Factory | Hacked KE Penetrator | -5/Factory | Hacked Hvy. Missile Launcher | -5/Factory | Hacked Nova Cannon | -3/Quarantine | Hacked Com. HERF Cannon | -3/Quarantine | Hacked Imp. Remote Datajack | -2/Research | Hacked Enh. Nova Cannon | -2/Research | Hacked Alien Tech Used ----------------- Dimensional Node Initializer Sigix Broadsword Transdimensional Reconstructor Core Stripper Integrated Dissipator Core Membrane LRC Energy Well LRC Armor Subatomic Replicator Integrity Redistributor Achievements -------------- None Challenges ------------ None Game ------ Seed RefineryAmuletFragment Manual? 0 Play Time 06:15:23 Cumulative 532.0 hours Start 2026.08.17 @ 16:30:45 End 2026.08.18 @ 18:21:15 Sessions 7 Manual Loads 0 Difficulty Rogue Special Mode None Game No. 221 Rogue 221 Adventurer 0 Explorer 0 Win Type - Total 41 Types 4/9/15/0/0/1/9/0/1/2 Lore% 85 Gallery% 73 Achievement% 70 Wizard Run 0 Options --------- Layout 1 ASCII 0 Keyboard 0 Movement Arrows Keybinds 0 Fullscreen 2 Font 24/Terminus Map View 50x35 Zoom Use 0% Tactical HUD 1 Map Filters NONE Filters NONE Steam 1 RUN: bcd13c52-76cd-4600-9f58-71050fdf842e